{"text_format":"3","workbook":"xlsx","n_sheets":4,"sheets":["Punktide jälgimine","Teie edenemine","Sätted","Arvutused"],"not_rendered":{"defined_names":3,"comments":1},"read":"whole","date_system":"1900"}

{"sheet":"Punktide jälgimine","index":0,"n_rows":14,"n_cols":6,"rows_kept":14}
[null,"Sisestage siia oma punktid"]
[]
[null,null,"Õppeaine","Tüüp","Kirjeldus","Punktid"]
[null,null,"Prantsuse keel","Kodutööd","II maailmasõja ajalugu",{"v":0.8,"d":"80%"}]
[null,null,"Programmeerimine Java-keeles","Tasemetöö",null,{"v":0.75,"d":"75%"}]
[null,null,"Hispaania keel","Kodutööd",null,{"v":0.5,"d":"50%"}]
[null,null,"Teoreetiline füüsika","Kodutööd",null,{"v":0.95,"d":"95%"}]
[null,null,"Prantsuse keel","Kodutööd","I maailmasõja ajalugu",{"v":0.9,"d":"90%"}]
[null,null,"Prantsuse keel","Kodutööd","Lk 30–41",{"v":0.8,"d":"80%"}]
[null,null,"Kirjand","Essee","Kaaskiri",{"v":0.95,"d":"95%"}]
[null,null,"Matemaatika 1","Kodutööd","Lk 21 ja 26",{"v":0.8,"d":"80%"}]
[null,null,"Matemaatika 2","Kodutööd","Lk 15 ja 18",{"v":0.85,"d":"85%"}]
[null,null,"Matemaatika 1","Kodutööd","Lk 34–36",{"v":0.8,"d":"80%"}]
[null,null,"Matemaatika 2","Tunnikontroll",null,{"v":0.95,"d":"95%"}]

{"sheet":"Teie edenemine","index":1,"n_rows":31,"n_cols":8,"rows_kept":31}
[null,"Teie edenemine"]
[]
[null,null,"Kokku"]
[null,null,{"$f":"\"Tunnid: \"&SUM(tblÕppeained[Ainepunktid])","v":"Tunnid: 24"},{"$f":"AVERAGE(D7:D31)","v":{"v":0.8104761904761906,"d":"81%"}},{"$f":"AVERAGE(E7:E31)","v":{"v":2.7142857142857144,"d":"2.71"}},{"$f":"SUM(F7:F31)","v":{"v":2.625,"d":"2.63"}},{"$f":"IFERROR(HLOOKUP(D4,lstGPAMapping,2),\"\")","v":"B-"}]
[]
[null,null,"Õppeained","%","Keskmine hinne","Kaalutud keskmine hinne","Täht","Üldised näitajad"]
[null,null,{"$f":"Arvutused!C6","v":"Prantsuse keel"},{"$f":"Arvutused!AL6","v":{"v":0.8333333333333334,"d":"83%"}},{"$f":"Arvutused!AM6","v":{"v":3,"d":"3.00"}},{"$f":"IFERROR(E7*Sätted!D9/SUM(tblÕppeained[Ainepunktid]),\"\")","v":{"v":0.375,"d":"0.38"}},{"$f":"Arvutused!AN6","v":"B"}]
[null,null,{"$f":"Arvutused!C7","v":"Teoreetiline füüsika"},{"$f":"Arvutused!AL7","v":{"v":0.95,"d":"95%"}},{"$f":"Arvutused!AM7","v":{"v":4,"d":"4.00"}},{"$f":"IFERROR(E8*Sätted!D10/SUM(tblÕppeained[Ainepunktid]),\"\")","v":{"v":0.5,"d":"0.50"}},{"$f":"Arvutused!AN7","v":"A"}]
[null,null,{"$f":"Arvutused!C8","v":"Matemaatika 1"},{"$f":"Arvutused!AL8","v":{"v":0.8000000000000002,"d":"80%"}},{"$f":"Arvutused!AM8","v":2.67},{"$f":"IFERROR(E9*Sätted!D11/SUM(tblÕppeained[Ainepunktid]),\"\")","v":{"v":0.445,"d":"0.45"}},{"$f":"Arvutused!AN8","v":"B-"}]
[null,null,{"$f":"Arvutused!C9","v":"Matemaatika 2"},{"$f":"Arvutused!AL9","v":{"v":0.89,"d":"89%"}},{"$f":"Arvutused!AM9","v":3.33},{"$f":"IFERROR(E10*Sätted!D12/SUM(tblÕppeained[Ainepunktid]),\"\")","v":{"v":0.555,"d":"0.56"}},{"$f":"Arvutused!AN9","v":"B+"}]
[null,null,{"$f":"Arvutused!C10","v":"Programmeerimine Java-keeles"},{"$f":"Arvutused!AL10","v":{"v":0.7500000000000001,"d":"75%"}},{"$f":"Arvutused!AM10","v":{"v":2,"d":"2.00"}},{"$f":"IFERROR(E11*Sätted!D13/SUM(tblÕppeained[Ainepunktid]),\"\")","v":{"v":0.4166666666666667,"d":"0.42"}},{"$f":"Arvutused!AN10","v":"C"}]
[null,null,{"$f":"Arvutused!C11","v":"Hispaania keel"},{"$f":"Arvutused!AL11","v":{"v":0.5,"d":"50%"}},{"$f":"Arvutused!AM11","v":{"v":0,"d":"0.00"}},{"$f":"IFERROR(E12*Sätted!D14/SUM(tblÕppeained[Ainepunktid]),\"\")","v":{"v":0,"d":"0.00"}},{"$f":"Arvutused!AN11","v":"F"}]
[null,null,{"$f":"Arvutused!C12","v":"Kirjand"},{"$f":"Arvutused!AL12","v":{"v":0.95,"d":"95%"}},{"$f":"Arvutused!AM12","v":{"v":4,"d":"4.00"}},{"$f":"IFERROR(E13*Sätted!D15/SUM(tblÕppeained[Ainepunktid]),\"\")","v":{"v":0.3333333333333333,"d":"0.33"}},{"$f":"Arvutused!AN12","v":"A"}]
[null,null,{"$f":"Arvutused!C13","v":""},{"$f":"Arvutused!AL13","v":""},{"$f":"Arvutused!AM13","v":""},{"$f":"IFERROR(E14*Sätted!D16/SUM(tblÕppeained[Ainepunktid]),\"\")","v":""},{"$f":"Arvutused!AN13","v":""}]
[null,null,{"$f":"Arvutused!C14","v":""},{"$f":"Arvutused!AL14","v":""},{"$f":"Arvutused!AM14","v":""},{"$f":"IFERROR(E15*Sätted!D17/SUM(tblÕppeained[Ainepunktid]),\"\")","v":""},{"$f":"Arvutused!AN14","v":""}]
[null,null,{"$f":"Arvutused!C15","v":""},{"$f":"Arvutused!AL15","v":""},{"$f":"Arvutused!AM15","v":""},{"$f":"IFERROR(E16*Sätted!D18/SUM(tblÕppeained[Ainepunktid]),\"\")","v":""},{"$f":"Arvutused!AN15","v":""}]
[null,null,{"$f":"Arvutused!C16","v":""},{"$f":"Arvutused!AL16","v":""},{"$f":"Arvutused!AM16","v":""},{"$f":"IFERROR(E17*Sätted!D19/SUM(tblÕppeained[Ainepunktid]),\"\")","v":""},{"$f":"Arvutused!AN16","v":""}]
[null,null,{"$f":"Arvutused!C17","v":""},{"$f":"Arvutused!AL17","v":""},{"$f":"Arvutused!AM17","v":""},{"$f":"IFERROR(E18*Sätted!D20/SUM(tblÕppeained[Ainepunktid]),\"\")","v":""},{"$f":"Arvutused!AN17","v":""}]
[null,null,{"$f":"Arvutused!C18","v":""},{"$f":"Arvutused!AL18","v":""},{"$f":"Arvutused!AM18","v":""},{"$f":"IFERROR(E19*Sätted!D21/SUM(tblÕppeained[Ainepunktid]),\"\")","v":""},{"$f":"Arvutused!AN18","v":""}]
[null,null,{"$f":"Arvutused!C19","v":""},{"$f":"Arvutused!AL19","v":""},{"$f":"Arvutused!AM19","v":""},{"$f":"IFERROR(E20*Sätted!D22/SUM(tblÕppeained[Ainepunktid]),\"\")","v":""},{"$f":"Arvutused!AN19","v":""}]
[null,null,{"$f":"Arvutused!C20","v":""},{"$f":"Arvutused!AL20","v":""},{"$f":"Arvutused!AM20","v":""},{"$f":"IFERROR(E21*Sätted!D23/SUM(tblÕppeained[Ainepunktid]),\"\")","v":""},{"$f":"Arvutused!AN20","v":""}]
[null,null,{"$f":"Arvutused!C21","v":""},{"$f":"Arvutused!AL21","v":""},{"$f":"Arvutused!AM21","v":""},{"$f":"IFERROR(E22*Sätted!D24/SUM(tblÕppeained[Ainepunktid]),\"\")","v":""},{"$f":"Arvutused!AN21","v":""}]
[null,null,{"$f":"Arvutused!C22","v":""},{"$f":"Arvutused!AL22","v":""},{"$f":"Arvutused!AM22","v":""},{"$f":"IFERROR(E23*Sätted!D25/SUM(tblÕppeained[Ainepunktid]),\"\")","v":""},{"$f":"Arvutused!AN22","v":""}]
[null,null,{"$f":"Arvutused!C23","v":""},{"$f":"Arvutused!AL23","v":""},{"$f":"Arvutused!AM23","v":""},{"$f":"IFERROR(E24*Sätted!D26/SUM(tblÕppeained[Ainepunktid]),\"\")","v":""},{"$f":"Arvutused!AN23","v":""}]
[null,null,{"$f":"Arvutused!C24","v":""},{"$f":"Arvutused!AL24","v":""},{"$f":"Arvutused!AM24","v":""},{"$f":"IFERROR(E25*Sätted!D27/SUM(tblÕppeained[Ainepunktid]),\"\")","v":""},{"$f":"Arvutused!AN24","v":""}]
[null,null,{"$f":"Arvutused!C25","v":""},{"$f":"Arvutused!AL25","v":""},{"$f":"Arvutused!AM25","v":""},{"$f":"IFERROR(E26*Sätted!D28/SUM(tblÕppeained[Ainepunktid]),\"\")","v":""},{"$f":"Arvutused!AN25","v":""}]
[null,null,{"$f":"Arvutused!C26","v":""},{"$f":"Arvutused!AL26","v":""},{"$f":"Arvutused!AM26","v":""},{"$f":"IFERROR(E27*Sätted!D29/SUM(tblÕppeained[Ainepunktid]),\"\")","v":""},{"$f":"Arvutused!AN26","v":""}]
[null,null,{"$f":"Arvutused!C27","v":""},{"$f":"Arvutused!AL27","v":""},{"$f":"Arvutused!AM27","v":""},{"$f":"IFERROR(E28*Sätted!D30/SUM(tblÕppeained[Ainepunktid]),\"\")","v":""},{"$f":"Arvutused!AN27","v":""}]
[null,null,{"$f":"Arvutused!C28","v":""},{"$f":"Arvutused!AL28","v":""},{"$f":"Arvutused!AM28","v":""},{"$f":"IFERROR(E29*Sätted!D31/SUM(tblÕppeained[Ainepunktid]),\"\")","v":""},{"$f":"Arvutused!AN28","v":""}]
[null,null,{"$f":"Arvutused!C29","v":""},{"$f":"Arvutused!AL29","v":""},{"$f":"Arvutused!AM29","v":""},{"$f":"IFERROR(E30*Sätted!D32/SUM(tblÕppeained[Ainepunktid]),\"\")","v":""},{"$f":"Arvutused!AN29","v":""}]
[null,null,{"$f":"Arvutused!C30","v":""},{"$f":"Arvutused!AL30","v":""},{"$f":"Arvutused!AM30","v":""},{"$f":"IFERROR(E31*Sätted!D33/SUM(tblÕppeained[Ainepunktid]),\"\")","v":""},{"$f":"Arvutused!AN30","v":""}]

{"sheet":"Sätted","index":2,"n_rows":15,"n_cols":16,"rows_kept":15,"merged":[[5,2,5,15]]}
[null,"Sätted"]
[null,null,"Hinded ja keskmise hinde vastendamine"]
[null,null,"Protsent",{"v":0,"d":"0%"},{"v":0.6,"d":"60%"},{"v":0.63,"d":"63%"},{"v":0.67,"d":"67%"},{"v":0.7,"d":"70%"},{"v":0.73,"d":"73%"},{"v":0.77,"d":"77%"},{"v":0.8,"d":"80%"},{"v":0.83,"d":"83%"},{"v":0.87,"d":"87%"},{"v":0.9,"d":"90%"},{"v":0.93,"d":"93%"},{"v":0.97,"d":"97%"}]
[null,null,"Hinne tähena","F","D-","D","D+","C-","C","C+","B-","B","B+","A-","A","A+"]
[null,null,"Keskmine hinne",0,0.67,1,1.33,1.67,2,2.33,2.67,3,3.33,3.67,4,4]
[]
[null,null,"Kaalutud hinded kuni 25 õppeaine jaoks"]
[null,null,"Õpilase ained","Ainepunktid","Kodutööd","Essee","Tunnikontroll","Projekt","Tasemetöö","Lõpueksam","Muu","% kokku"]
[null,null,"Prantsuse keel",{"v":3,"d":"3.0"},{"v":0.1,"d":"10%"},{"v":0.15,"d":"15%"},{"v":0.15,"d":"15%"},{"v":0.1,"d":"10%"},{"v":0.2,"d":"20%"},{"v":0.3,"d":"30%"},null,{"$f":"SUM(tblÕppeained[[#This Row],[Kodutööd]:[Muu]])","v":{"v":1,"d":"100%"}}]
[null,null,"Teoreetiline füüsika",{"v":3,"d":"3.0"},{"v":0.15,"d":"15%"},{"v":0.15,"d":"15%"},{"v":0.1,"d":"10%"},{"v":0.1,"d":"10%"},{"v":0.15,"d":"15%"},{"v":0.3,"d":"30%"},{"v":0.05,"d":"5%"},{"$f":"SUM(tblÕppeained[[#This Row],[Kodutööd]:[Muu]])","v":{"v":1,"d":"100%"}}]
[null,null,"Matemaatika 1",{"v":4,"d":"4.0"},{"v":0.1,"d":"10%"},{"v":0.15,"d":"15%"},{"v":0.15,"d":"15%"},{"v":0.1,"d":"10%"},{"v":0.2,"d":"20%"},{"v":0.3,"d":"30%"},null,{"$f":"SUM(tblÕppeained[[#This Row],[Kodutööd]:[Muu]])","v":{"v":1,"d":"100%"}}]
[null,null,"Matemaatika 2",{"v":4,"d":"4.0"},{"v":0.15,"d":"15%"},{"v":0.15,"d":"15%"},{"v":0.1,"d":"10%"},{"v":0.1,"d":"10%"},{"v":0.15,"d":"15%"},{"v":0.3,"d":"30%"},{"v":0.05,"d":"5%"},{"$f":"SUM(tblÕppeained[[#This Row],[Kodutööd]:[Muu]])","v":{"v":1,"d":"100%"}}]
[null,null,"Programmeerimine Java-keeles",{"v":5,"d":"5.0"},{"v":0.15,"d":"15%"},{"v":0.15,"d":"15%"},{"v":0.1,"d":"10%"},{"v":0.1,"d":"10%"},{"v":0.2,"d":"20%"},{"v":0.3,"d":"30%"},null,{"$f":"SUM(tblÕppeained[[#This Row],[Kodutööd]:[Muu]])","v":{"v":1,"d":"100%"}}]
[null,null,"Hispaania keel",{"v":3,"d":"3.0"},{"v":0.1,"d":"10%"},{"v":0.15,"d":"15%"},{"v":0.17,"d":"17%"},{"v":0.13,"d":"13%"},{"v":0.2,"d":"20%"},{"v":0.2,"d":"20%"},{"v":0.05,"d":"5%"},{"$f":"SUM(tblÕppeained[[#This Row],[Kodutööd]:[Muu]])","v":{"v":1,"d":"100%"}}]
[null,null,"Kirjand",{"v":2,"d":"2.0"},{"v":0.15,"d":"15%"},{"v":0.15,"d":"15%"},{"v":0.12,"d":"12%"},{"v":0.15,"d":"15%"},{"v":0.15,"d":"15%"},{"v":0.25,"d":"25%"},{"v":0.03,"d":"3%"},{"$f":"SUM(tblÕppeained[[#This Row],[Kodutööd]:[Muu]])","v":{"v":1,"d":"100%"}}]

{"sheet":"Arvutused","index":3,"n_rows":657,"n_cols":40,"rows_kept":657,"hidden":true}
[null,"Arvutused"]
[null,null,"Sellel töölehel arvutatakse teie hinded ja keskmine hinne ning see peaks jääma peidetuks. Kui sellel lehel muudatusi teha, võib see kaasa tuua vigu."]
[]
[null,null,"Praegused õppeained","Punktisummad (tervik on 1)",{"$nulls":24},"Hinde arvutamine"]
[null,null,"Õppeaine",1,2,3,4,5,6,7,8,9,10,11,12,13,14,15,16,17,18,19,20,21,22,23,24,25,{"$f":"tblÕppeained[[#Headers],[Kodutööd]]","v":"Kodutööd"},{"$f":"tblÕppeained[[#Headers],[Essee]]","v":"Essee"},{"$f":"tblÕppeained[[#Headers],[Tunnikontroll]]","v":"Tunnikontroll"},{"$f":"tblÕppeained[[#Headers],[Projekt]]","v":"Projekt"},{"$f":"tblÕppeained[[#Headers],[Tasemetöö]]","v":"Tasemetöö"},{"$f":"tblÕppeained[[#Headers],[Lõpueksam]]","v":"Lõpueksam"},{"$f":"tblÕppeained[[#Headers],[Muu]]","v":"Muu"},"Kokku","Võimalikud punktid kokku","Kokku %","Hinne","Hinne tähena"]
[null,null,{"$f":"IF(Sätted!C9=\"\",\"\",Sätted!C9)","v":"Prantsuse keel"},{"$f":"IFERROR(INDEX(tblÕppeainedHinded[],MATCH($C6:$C30&D$5:AB$5,Arvutused!$C$33:$C$657,0),4),\"\")","v":{"v":0.8,"d":"80%"}},{"v":0.9,"d":"90%"},{"v":0.8,"d":"80%"},"","","","","","","","","","","","","","","","","","","","","","",{"$f":"IFERROR(AVERAGEIFS(tblÕppeainedHinded[Punktid],tblÕppeainedHinded[Õppeaine],Arvutused!$C6,tblÕppeainedHinded[Tüüp],Arvutused!AC$5)*Sätted!E9,\"\")","v":0.08333333333333334},{"$f":"IFERROR(AVERAGEIFS(tblÕppeainedHinded[Punktid],tblÕppeainedHinded[Õppeaine],Arvutused!$C6,tblÕppeainedHinded[Tüüp],Arvutused!AD$5)*Sätted!F9,\"\")","v":""},{"$f":"IFERROR(AVERAGEIFS(tblÕppeainedHinded[Punktid],tblÕppeainedHinded[Õppeaine],Arvutused!$C6,tblÕppeainedHinded[Tüüp],Arvutused!AE$5)*Sätted!G9,\"\")","v":""},{"$f":"IFERROR(AVERAGEIFS(tblÕppeainedHinded[Punktid],tblÕppeainedHinded[Õppeaine],Arvutused!$C6,tblÕppeainedHinded[Tüüp],Arvutused!AF$5)*Sätted!H9,\"\")","v":""},{"$f":"IFERROR(AVERAGEIFS(tblÕppeainedHinded[Punktid],tblÕppeainedHinded[Õppeaine],Arvutused!$C6,tblÕppeainedHinded[Tüüp],Arvutused!AG$5)*Sätted!I9,\"\")","v":""},{"$f":"IFERROR(AVERAGEIFS(tblÕppeainedHinded[Punktid],tblÕppeainedHinded[Õppeaine],Arvutused!$C6,tblÕppeainedHinded[Tüüp],Arvutused!AH$5)*Sätted!J9,\"\")","v":""},{"$f":"IFERROR(AVERAGEIFS(tblÕppeainedHinded[Punktid],tblÕppeainedHinded[Õppeaine],Arvutused!$C6,tblÕppeainedHinded[Tüüp],Arvutused!AI$5)*Sätted!K9,\"\")","v":""},{"$f":"SUM(AC6:AI6)","v":0.08333333333333334},{"$f":"SUMIFS(Sätted!E9:K9,Arvutused!AC6:AI6,\">0\")","v":0.1},{"$f":"IFERROR(AJ6/AK6,\"\")","v":{"v":0.8333333333333334,"d":"83%"}},{"$f":"IFERROR(HLOOKUP(AL6,lstGPAMapping,3),\"\")","v":3},{"$f":"IFERROR(HLOOKUP(AL6,lstGPAMapping,2),\"\")","v":"B"}]
[null,null,{"$f":"IF(Sätted!C10=\"\",\"\",Sätted!C10)","v":"Teoreetiline füüsika"},{"v":0.95,"d":"95%"},"","","","","","","","","","","","","","","","","","","","","","","","",{"$f":"IFERROR(AVERAGEIFS(tblÕppeainedHinded[Punktid],tblÕppeainedHinded[Õppeaine],Arvutused!$C7,tblÕppeainedHinded[Tüüp],Arvutused!AC$5)*Sätted!E10,\"\")","v":0.1425},{"$f":"IFERROR(AVERAGEIFS(tblÕppeainedHinded[Punktid],tblÕppeainedHinded[Õppeaine],Arvutused!$C7,tblÕppeainedHinded[Tüüp],Arvutused!AD$5)*Sätted!F10,\"\")","v":""},{"$f":"IFERROR(AVERAGEIFS(tblÕppeainedHinded[Punktid],tblÕppeainedHinded[Õppeaine],Arvutused!$C7,tblÕppeainedHinded[Tüüp],Arvutused!AE$5)*Sätted!G10,\"\")","v":""},{"$f":"IFERROR(AVERAGEIFS(tblÕppeainedHinded[Punktid],tblÕppeainedHinded[Õppeaine],Arvutused!$C7,tblÕppeainedHinded[Tüüp],Arvutused!AF$5)*Sätted!H10,\"\")","v":""},{"$f":"IFERROR(AVERAGEIFS(tblÕppeainedHinded[Punktid],tblÕppeainedHinded[Õppeaine],Arvutused!$C7,tblÕppeainedHinded[Tüüp],Arvutused!AG$5)*Sätted!I10,\"\")","v":""},{"$f":"IFERROR(AVERAGEIFS(tblÕppeainedHinded[Punktid],tblÕppeainedHinded[Õppeaine],Arvutused!$C7,tblÕppeainedHinded[Tüüp],Arvutused!AH$5)*Sätted!J10,\"\")","v":""},{"$f":"IFERROR(AVERAGEIFS(tblÕppeainedHinded[Punktid],tblÕppeainedHinded[Õppeaine],Arvutused!$C7,tblÕppeainedHinded[Tüüp],Arvutused!AI$5)*Sätted!K10,\"\")","v":""},{"$f":"SUM(AC7:AI7)","v":0.1425},{"$f":"SUMIFS(Sätted!E10:K10,Arvutused!AC7:AI7,\">0\")","v":0.15},{"$f":"IFERROR(AJ7/AK7,\"\")","v":{"v":0.95,"d":"95%"}},4,"A"]
[null,null,{"$f":"IF(Sätted!C11=\"\",\"\",Sätted!C11)","v":"Matemaatika 1"},{"v":0.8,"d":"80%"},{"v":0.8,"d":"80%"},"","","","","","","","","","","","","","","","","","","","","","","",{"$f":"IFERROR(AVERAGEIFS(tblÕppeainedHinded[Punktid],tblÕppeainedHinded[Õppeaine],Arvutused!$C8,tblÕppeainedHinded[Tüüp],Arvutused!AC$5)*Sätted!E11,\"\")","v":0.08000000000000002},{"$f":"IFERROR(AVERAGEIFS(tblÕppeainedHinded[Punktid],tblÕppeainedHinded[Õppeaine],Arvutused!$C8,tblÕppeainedHinded[Tüüp],Arvutused!AD$5)*Sätted!F11,\"\")","v":""},{"$f":"IFERROR(AVERAGEIFS(tblÕppeainedHinded[Punktid],tblÕppeainedHinded[Õppeaine],Arvutused!$C8,tblÕppeainedHinded[Tüüp],Arvutused!AE$5)*Sätted!G11,\"\")","v":""},{"$f":"IFERROR(AVERAGEIFS(tblÕppeainedHinded[Punktid],tblÕppeainedHinded[Õppeaine],Arvutused!$C8,tblÕppeainedHinded[Tüüp],Arvutused!AF$5)*Sätted!H11,\"\")","v":""},{"$f":"IFERROR(AVERAGEIFS(tblÕppeainedHinded[Punktid],tblÕppeainedHinded[Õppeaine],Arvutused!$C8,tblÕppeainedHinded[Tüüp],Arvutused!AG$5)*Sätted!I11,\"\")","v":""},{"$f":"IFERROR(AVERAGEIFS(tblÕppeainedHinded[Punktid],tblÕppeainedHinded[Õppeaine],Arvutused!$C8,tblÕppeainedHinded[Tüüp],Arvutused!AH$5)*Sätted!J11,\"\")","v":""},{"$f":"IFERROR(AVERAGEIFS(tblÕppeainedHinded[Punktid],tblÕppeainedHinded[Õppeaine],Arvutused!$C8,tblÕppeainedHinded[Tüüp],Arvutused!AI$5)*Sätted!K11,\"\")","v":""},0.08000000000000002,{"$f":"SUMIFS(Sätted!E11:K11,Arvutused!AC8:AI8,\">0\")","v":0.1},{"v":0.8000000000000002,"d":"80%"},2.67,"B-"]
[null,null,{"$f":"IF(Sätted!C12=\"\",\"\",Sätted!C12)","v":"Matemaatika 2"},{"v":0.85,"d":"85%"},{"v":0.95,"d":"95%"},"","","","","","","","","","","","","","","","","","","","","","","",{"$f":"IFERROR(AVERAGEIFS(tblÕppeainedHinded[Punktid],tblÕppeainedHinded[Õppeaine],Arvutused!$C9,tblÕppeainedHinded[Tüüp],Arvutused!AC$5)*Sätted!E12,\"\")","v":0.1275},{"$f":"IFERROR(AVERAGEIFS(tblÕppeainedHinded[Punktid],tblÕppeainedHinded[Õppeaine],Arvutused!$C9,tblÕppeainedHinded[Tüüp],Arvutused!AD$5)*Sätted!F12,\"\")","v":""},{"$f":"IFERROR(AVERAGEIFS(tblÕppeainedHinded[Punktid],tblÕppeainedHinded[Õppeaine],Arvutused!$C9,tblÕppeainedHinded[Tüüp],Arvutused!AE$5)*Sätted!G12,\"\")","v":0.095},{"$f":"IFERROR(AVERAGEIFS(tblÕppeainedHinded[Punktid],tblÕppeainedHinded[Õppeaine],Arvutused!$C9,tblÕppeainedHinded[Tüüp],Arvutused!AF$5)*Sätted!H12,\"\")","v":""},{"$f":"IFERROR(AVERAGEIFS(tblÕppeainedHinded[Punktid],tblÕppeainedHinded[Õppeaine],Arvutused!$C9,tblÕppeainedHinded[Tüüp],Arvutused!AG$5)*Sätted!I12,\"\")","v":""},{"$f":"IFERROR(AVERAGEIFS(tblÕppeainedHinded[Punktid],tblÕppeainedHinded[Õppeaine],Arvutused!$C9,tblÕppeainedHinded[Tüüp],Arvutused!AH$5)*Sätted!J12,\"\")","v":""},{"$f":"IFERROR(AVERAGEIFS(tblÕppeainedHinded[Punktid],tblÕppeainedHinded[Õppeaine],Arvutused!$C9,tblÕppeainedHinded[Tüüp],Arvutused!AI$5)*Sätted!K12,\"\")","v":""},0.2225,{"$f":"SUMIFS(Sätted!E12:K12,Arvutused!AC9:AI9,\">0\")","v":0.25},{"v":0.89,"d":"89%"},3.33,"B+"]
[null,null,{"$f":"IF(Sätted!C13=\"\",\"\",Sätted!C13)","v":"Programmeerimine Java-keeles"},{"v":0.75,"d":"75%"},"","","","","","","","","","","","","","","","","","","","","","","","",{"$f":"IFERROR(AVERAGEIFS(tblÕppeainedHinded[Punktid],tblÕppeainedHinded[Õppeaine],Arvutused!$C10,tblÕppeainedHinded[Tüüp],Arvutused!AC$5)*Sätted!E13,\"\")","v":""},{"$f":"IFERROR(AVERAGEIFS(tblÕppeainedHinded[Punktid],tblÕppeainedHinded[Õppeaine],Arvutused!$C10,tblÕppeainedHinded[Tüüp],Arvutused!AD$5)*Sätted!F13,\"\")","v":""},{"$f":"IFERROR(AVERAGEIFS(tblÕppeainedHinded[Punktid],tblÕppeainedHinded[Õppeaine],Arvutused!$C10,tblÕppeainedHinded[Tüüp],Arvutused!AE$5)*Sätted!G13,\"\")","v":""},{"$f":"IFERROR(AVERAGEIFS(tblÕppeainedHinded[Punktid],tblÕppeainedHinded[Õppeaine],Arvutused!$C10,tblÕppeainedHinded[Tüüp],Arvutused!AF$5)*Sätted!H13,\"\")","v":""},{"$f":"IFERROR(AVERAGEIFS(tblÕppeainedHinded[Punktid],tblÕppeainedHinded[Õppeaine],Arvutused!$C10,tblÕppeainedHinded[Tüüp],Arvutused!AG$5)*Sätted!I13,\"\")","v":0.15000000000000002},{"$f":"IFERROR(AVERAGEIFS(tblÕppeainedHinded[Punktid],tblÕppeainedHinded[Õppeaine],Arvutused!$C10,tblÕppeainedHinded[Tüüp],Arvutused!AH$5)*Sätted!J13,\"\")","v":""},{"$f":"IFERROR(AVERAGEIFS(tblÕppeainedHinded[Punktid],tblÕppeainedHinded[Õppeaine],Arvutused!$C10,tblÕppeainedHinded[Tüüp],Arvutused!AI$5)*Sätted!K13,\"\")","v":""},0.15000000000000002,{"$f":"SUMIFS(Sätted!E13:K13,Arvutused!AC10:AI10,\">0\")","v":0.2},{"v":0.7500000000000001,"d":"75%"},2,"C"]
[null,null,{"$f":"IF(Sätted!C14=\"\",\"\",Sätted!C14)","v":"Hispaania keel"},{"v":0.5,"d":"50%"},"","","","","","","","","","","","","","","","","","","","","","","","",{"$f":"IFERROR(AVERAGEIFS(tblÕppeainedHinded[Punktid],tblÕppeainedHinded[Õppeaine],Arvutused!$C11,tblÕppeainedHinded[Tüüp],Arvutused!AC$5)*Sätted!E14,\"\")","v":0.05},{"$f":"IFERROR(AVERAGEIFS(tblÕppeainedHinded[Punktid],tblÕppeainedHinded[Õppeaine],Arvutused!$C11,tblÕppeainedHinded[Tüüp],Arvutused!AD$5)*Sätted!F14,\"\")","v":""},{"$f":"IFERROR(AVERAGEIFS(tblÕppeainedHinded[Punktid],tblÕppeainedHinded[Õppeaine],Arvutused!$C11,tblÕppeainedHinded[Tüüp],Arvutused!AE$5)*Sätted!G14,\"\")","v":""},{"$f":"IFERROR(AVERAGEIFS(tblÕppeainedHinded[Punktid],tblÕppeainedHinded[Õppeaine],Arvutused!$C11,tblÕppeainedHinded[Tüüp],Arvutused!AF$5)*Sätted!H14,\"\")","v":""},{"$f":"IFERROR(AVERAGEIFS(tblÕppeainedHinded[Punktid],tblÕppeainedHinded[Õppeaine],Arvutused!$C11,tblÕppeainedHinded[Tüüp],Arvutused!AG$5)*Sätted!I14,\"\")","v":""},{"$f":"IFERROR(AVERAGEIFS(tblÕppeainedHinded[Punktid],tblÕppeainedHinded[Õppeaine],Arvutused!$C11,tblÕppeainedHinded[Tüüp],Arvutused!AH$5)*Sätted!J14,\"\")","v":""},{"$f":"IFERROR(AVERAGEIFS(tblÕppeainedHinded[Punktid],tblÕppeainedHinded[Õppeaine],Arvutused!$C11,tblÕppeainedHinded[Tüüp],Arvutused!AI$5)*Sätted!K14,\"\")","v":""},0.05,{"$f":"SUMIFS(Sätted!E14:K14,Arvutused!AC11:AI11,\">0\")","v":0.1},{"v":0.5,"d":"50%"},0,"F"]
[null,null,{"$f":"IF(Sätted!C15=\"\",\"\",Sätted!C15)","v":"Kirjand"},{"v":0.95,"d":"95%"},"","","","","","","","","","","","","","","","","","","","","","","","",{"$f":"IFERROR(AVERAGEIFS(tblÕppeainedHinded[Punktid],tblÕppeainedHinded[Õppeaine],Arvutused!$C12,tblÕppeainedHinded[Tüüp],Arvutused!AC$5)*Sätted!E15,\"\")","v":""},{"$f":"IFERROR(AVERAGEIFS(tblÕppeainedHinded[Punktid],tblÕppeainedHinded[Õppeaine],Arvutused!$C12,tblÕppeainedHinded[Tüüp],Arvutused!AD$5)*Sätted!F15,\"\")","v":0.1425},{"$f":"IFERROR(AVERAGEIFS(tblÕppeainedHinded[Punktid],tblÕppeainedHinded[Õppeaine],Arvutused!$C12,tblÕppeainedHinded[Tüüp],Arvutused!AE$5)*Sätted!G15,\"\")","v":""},{"$f":"IFERROR(AVERAGEIFS(tblÕppeainedHinded[Punktid],tblÕppeainedHinded[Õppeaine],Arvutused!$C12,tblÕppeainedHinded[Tüüp],Arvutused!AF$5)*Sätted!H15,\"\")","v":""},{"$f":"IFERROR(AVERAGEIFS(tblÕppeainedHinded[Punktid],tblÕppeainedHinded[Õppeaine],Arvutused!$C12,tblÕppeainedHinded[Tüüp],Arvutused!AG$5)*Sätted!I15,\"\")","v":""},{"$f":"IFERROR(AVERAGEIFS(tblÕppeainedHinded[Punktid],tblÕppeainedHinded[Õppeaine],Arvutused!$C12,tblÕppeainedHinded[Tüüp],Arvutused!AH$5)*Sätted!J15,\"\")","v":""},{"$f":"IFERROR(AVERAGEIFS(tblÕppeainedHinded[Punktid],tblÕppeainedHinded[Õppeaine],Arvutused!$C12,tblÕppeainedHinded[Tüüp],Arvutused!AI$5)*Sätted!K15,\"\")","v":""},0.1425,{"$f":"SUMIFS(Sätted!E15:K15,Arvutused!AC12:AI12,\">0\")","v":0.15},{"v":0.95,"d":"95%"},4,"A"]
[null,null,{"$f":"IF(Sätted!C16=\"\",\"\",Sätted!C16)","v":""},"","","","","","","","","","","","","","","","","","","","","","","","","",{"$f":"IFERROR(AVERAGEIFS(tblÕppeainedHinded[Punktid],tblÕppeainedHinded[Õppeaine],Arvutused!$C13,tblÕppeainedHinded[Tüüp],Arvutused!AC$5)*Sätted!E16,\"\")","v":""},{"$f":"IFERROR(AVERAGEIFS(tblÕppeainedHinded[Punktid],tblÕppeainedHinded[Õppeaine],Arvutused!$C13,tblÕppeainedHinded[Tüüp],Arvutused!AD$5)*Sätted!F16,\"\")","v":""},{"$f":"IFERROR(AVERAGEIFS(tblÕppeainedHinded[Punktid],tblÕppeainedHinded[Õppeaine],Arvutused!$C13,tblÕppeainedHinded[Tüüp],Arvutused!AE$5)*Sätted!G16,\"\")","v":""},{"$f":"IFERROR(AVERAGEIFS(tblÕppeainedHinded[Punktid],tblÕppeainedHinded[Õppeaine],Arvutused!$C13,tblÕppeainedHinded[Tüüp],Arvutused!AF$5)*Sätted!H16,\"\")","v":""},{"$f":"IFERROR(AVERAGEIFS(tblÕppeainedHinded[Punktid],tblÕppeainedHinded[Õppeaine],Arvutused!$C13,tblÕppeainedHinded[Tüüp],Arvutused!AG$5)*Sätted!I16,\"\")","v":""},{"$f":"IFERROR(AVERAGEIFS(tblÕppeainedHinded[Punktid],tblÕppeainedHinded[Õppeaine],Arvutused!$C13,tblÕppeainedHinded[Tüüp],Arvutused!AH$5)*Sätted!J16,\"\")","v":""},{"$f":"IFERROR(AVERAGEIFS(tblÕppeainedHinded[Punktid],tblÕppeainedHinded[Õppeaine],Arvutused!$C13,tblÕppeainedHinded[Tüüp],Arvutused!AI$5)*Sätted!K16,\"\")","v":""},0,{"$f":"SUMIFS(Sätted!E16:K16,Arvutused!AC13:AI13,\">0\")","v":0},"","",""]
[null,null,{"$f":"IF(Sätted!C17=\"\",\"\",Sätted!C17)","v":""},"","","","","","","","","","","","","","","","","","","","","","","","","",{"$f":"IFERROR(AVERAGEIFS(tblÕppeainedHinded[Punktid],tblÕppeainedHinded[Õppeaine],Arvutused!$C14,tblÕppeainedHinded[Tüüp],Arvutused!AC$5)*Sätted!E17,\"\")","v":""},{"$f":"IFERROR(AVERAGEIFS(tblÕppeainedHinded[Punktid],tblÕppeainedHinded[Õppeaine],Arvutused!$C14,tblÕppeainedHinded[Tüüp],Arvutused!AD$5)*Sätted!F17,\"\")","v":""},{"$f":"IFERROR(AVERAGEIFS(tblÕppeainedHinded[Punktid],tblÕppeainedHinded[Õppeaine],Arvutused!$C14,tblÕppeainedHinded[Tüüp],Arvutused!AE$5)*Sätted!G17,\"\")","v":""},{"$f":"IFERROR(AVERAGEIFS(tblÕppeainedHinded[Punktid],tblÕppeainedHinded[Õppeaine],Arvutused!$C14,tblÕppeainedHinded[Tüüp],Arvutused!AF$5)*Sätted!H17,\"\")","v":""},{"$f":"IFERROR(AVERAGEIFS(tblÕppeainedHinded[Punktid],tblÕppeainedHinded[Õppeaine],Arvutused!$C14,tblÕppeainedHinded[Tüüp],Arvutused!AG$5)*Sätted!I17,\"\")","v":""},{"$f":"IFERROR(AVERAGEIFS(tblÕppeainedHinded[Punktid],tblÕppeainedHinded[Õppeaine],Arvutused!$C14,tblÕppeainedHinded[Tüüp],Arvutused!AH$5)*Sätted!J17,\"\")","v":""},{"$f":"IFERROR(AVERAGEIFS(tblÕppeainedHinded[Punktid],tblÕppeainedHinded[Õppeaine],Arvutused!$C14,tblÕppeainedHinded[Tüüp],Arvutused!AI$5)*Sätted!K17,\"\")","v":""},0,{"$f":"SUMIFS(Sätted!E17:K17,Arvutused!AC14:AI14,\">0\")","v":0},"","",""]
[null,null,{"$f":"IF(Sätted!C18=\"\",\"\",Sätted!C18)","v":""},"","","","","","","","","","","","","","","","","","","","","","","","","",{"$f":"IFERROR(AVERAGEIFS(tblÕppeainedHinded[Punktid],tblÕppeainedHinded[Õppeaine],Arvutused!$C15,tblÕppeainedHinded[Tüüp],Arvutused!AC$5)*Sätted!E18,\"\")","v":""},{"$f":"IFERROR(AVERAGEIFS(tblÕppeainedHinded[Punktid],tblÕppeainedHinded[Õppeaine],Arvutused!$C15,tblÕppeainedHinded[Tüüp],Arvutused!AD$5)*Sätted!F18,\"\")","v":""},{"$f":"IFERROR(AVERAGEIFS(tblÕppeainedHinded[Punktid],tblÕppeainedHinded[Õppeaine],Arvutused!$C15,tblÕppeainedHinded[Tüüp],Arvutused!AE$5)*Sätted!G18,\"\")","v":""},{"$f":"IFERROR(AVERAGEIFS(tblÕppeainedHinded[Punktid],tblÕppeainedHinded[Õppeaine],Arvutused!$C15,tblÕppeainedHinded[Tüüp],Arvutused!AF$5)*Sätted!H18,\"\")","v":""},{"$f":"IFERROR(AVERAGEIFS(tblÕppeainedHinded[Punktid],tblÕppeainedHinded[Õppeaine],Arvutused!$C15,tblÕppeainedHinded[Tüüp],Arvutused!AG$5)*Sätted!I18,\"\")","v":""},{"$f":"IFERROR(AVERAGEIFS(tblÕppeainedHinded[Punktid],tblÕppeainedHinded[Õppeaine],Arvutused!$C15,tblÕppeainedHinded[Tüüp],Arvutused!AH$5)*Sätted!J18,\"\")","v":""},{"$f":"IFERROR(AVERAGEIFS(tblÕppeainedHinded[Punktid],tblÕppeainedHinded[Õppeaine],Arvutused!$C15,tblÕppeainedHinded[Tüüp],Arvutused!AI$5)*Sätted!K18,\"\")","v":""},0,{"$f":"SUMIFS(Sätted!E18:K18,Arvutused!AC15:AI15,\">0\")","v":0},"","",""]
[null,null,{"$f":"IF(Sätted!C19=\"\",\"\",Sätted!C19)","v":""},"","","","","","","","","","","","","","","","","","","","","","","","","",{"$f":"IFERROR(AVERAGEIFS(tblÕppeainedHinded[Punktid],tblÕppeainedHinded[Õppeaine],Arvutused!$C16,tblÕppeainedHinded[Tüüp],Arvutused!AC$5)*Sätted!E19,\"\")","v":""},{"$f":"IFERROR(AVERAGEIFS(tblÕppeainedHinded[Punktid],tblÕppeainedHinded[Õppeaine],Arvutused!$C16,tblÕppeainedHinded[Tüüp],Arvutused!AD$5)*Sätted!F19,\"\")","v":""},{"$f":"IFERROR(AVERAGEIFS(tblÕppeainedHinded[Punktid],tblÕppeainedHinded[Õppeaine],Arvutused!$C16,tblÕppeainedHinded[Tüüp],Arvutused!AE$5)*Sätted!G19,\"\")","v":""},{"$f":"IFERROR(AVERAGEIFS(tblÕppeainedHinded[Punktid],tblÕppeainedHinded[Õppeaine],Arvutused!$C16,tblÕppeainedHinded[Tüüp],Arvutused!AF$5)*Sätted!H19,\"\")","v":""},{"$f":"IFERROR(AVERAGEIFS(tblÕppeainedHinded[Punktid],tblÕppeainedHinded[Õppeaine],Arvutused!$C16,tblÕppeainedHinded[Tüüp],Arvutused!AG$5)*Sätted!I19,\"\")","v":""},{"$f":"IFERROR(AVERAGEIFS(tblÕppeainedHinded[Punktid],tblÕppeainedHinded[Õppeaine],Arvutused!$C16,tblÕppeainedHinded[Tüüp],Arvutused!AH$5)*Sätted!J19,\"\")","v":""},{"$f":"IFERROR(AVERAGEIFS(tblÕppeainedHinded[Punktid],tblÕppeainedHinded[Õppeaine],Arvutused!$C16,tblÕppeainedHinded[Tüüp],Arvutused!AI$5)*Sätted!K19,\"\")","v":""},0,{"$f":"SUMIFS(Sätted!E19:K19,Arvutused!AC16:AI16,\">0\")","v":0},"","",""]
[null,null,{"$f":"IF(Sätted!C20=\"\",\"\",Sätted!C20)","v":""},"","","","","","","","","","","","","","","","","","","","","","","","","",{"$f":"IFERROR(AVERAGEIFS(tblÕppeainedHinded[Punktid],tblÕppeainedHinded[Õppeaine],Arvutused!$C17,tblÕppeainedHinded[Tüüp],Arvutused!AC$5)*Sätted!E20,\"\")","v":""},{"$f":"IFERROR(AVERAGEIFS(tblÕppeainedHinded[Punktid],tblÕppeainedHinded[Õppeaine],Arvutused!$C17,tblÕppeainedHinded[Tüüp],Arvutused!AD$5)*Sätted!F20,\"\")","v":""},{"$f":"IFERROR(AVERAGEIFS(tblÕppeainedHinded[Punktid],tblÕppeainedHinded[Õppeaine],Arvutused!$C17,tblÕppeainedHinded[Tüüp],Arvutused!AE$5)*Sätted!G20,\"\")","v":""},{"$f":"IFERROR(AVERAGEIFS(tblÕppeainedHinded[Punktid],tblÕppeainedHinded[Õppeaine],Arvutused!$C17,tblÕppeainedHinded[Tüüp],Arvutused!AF$5)*Sätted!H20,\"\")","v":""},{"$f":"IFERROR(AVERAGEIFS(tblÕppeainedHinded[Punktid],tblÕppeainedHinded[Õppeaine],Arvutused!$C17,tblÕppeainedHinded[Tüüp],Arvutused!AG$5)*Sätted!I20,\"\")","v":""},{"$f":"IFERROR(AVERAGEIFS(tblÕppeainedHinded[Punktid],tblÕppeainedHinded[Õppeaine],Arvutused!$C17,tblÕppeainedHinded[Tüüp],Arvutused!AH$5)*Sätted!J20,\"\")","v":""},{"$f":"IFERROR(AVERAGEIFS(tblÕppeainedHinded[Punktid],tblÕppeainedHinded[Õppeaine],Arvutused!$C17,tblÕppeainedHinded[Tüüp],Arvutused!AI$5)*Sätted!K20,\"\")","v":""},0,{"$f":"SUMIFS(Sätted!E20:K20,Arvutused!AC17:AI17,\">0\")","v":0},"","",""]
[null,null,{"$f":"IF(Sätted!C21=\"\",\"\",Sätted!C21)","v":""},"","","","","","","","","","","","","","","","","","","","","","","","","",{"$f":"IFERROR(AVERAGEIFS(tblÕppeainedHinded[Punktid],tblÕppeainedHinded[Õppeaine],Arvutused!$C18,tblÕppeainedHinded[Tüüp],Arvutused!AC$5)*Sätted!E21,\"\")","v":""},{"$f":"IFERROR(AVERAGEIFS(tblÕppeainedHinded[Punktid],tblÕppeainedHinded[Õppeaine],Arvutused!$C18,tblÕppeainedHinded[Tüüp],Arvutused!AD$5)*Sätted!F21,\"\")","v":""},{"$f":"IFERROR(AVERAGEIFS(tblÕppeainedHinded[Punktid],tblÕppeainedHinded[Õppeaine],Arvutused!$C18,tblÕppeainedHinded[Tüüp],Arvutused!AE$5)*Sätted!G21,\"\")","v":""},{"$f":"IFERROR(AVERAGEIFS(tblÕppeainedHinded[Punktid],tblÕppeainedHinded[Õppeaine],Arvutused!$C18,tblÕppeainedHinded[Tüüp],Arvutused!AF$5)*Sätted!H21,\"\")","v":""},{"$f":"IFERROR(AVERAGEIFS(tblÕppeainedHinded[Punktid],tblÕppeainedHinded[Õppeaine],Arvutused!$C18,tblÕppeainedHinded[Tüüp],Arvutused!AG$5)*Sätted!I21,\"\")","v":""},{"$f":"IFERROR(AVERAGEIFS(tblÕppeainedHinded[Punktid],tblÕppeainedHinded[Õppeaine],Arvutused!$C18,tblÕppeainedHinded[Tüüp],Arvutused!AH$5)*Sätted!J21,\"\")","v":""},{"$f":"IFERROR(AVERAGEIFS(tblÕppeainedHinded[Punktid],tblÕppeainedHinded[Õppeaine],Arvutused!$C18,tblÕppeainedHinded[Tüüp],Arvutused!AI$5)*Sätted!K21,\"\")","v":""},0,{"$f":"SUMIFS(Sätted!E21:K21,Arvutused!AC18:AI18,\">0\")","v":0},"","",""]
[null,null,{"$f":"IF(Sätted!C22=\"\",\"\",Sätted!C22)","v":""},"","","","","","","","","","","","","","","","","","","","","","","","","",{"$f":"IFERROR(AVERAGEIFS(tblÕppeainedHinded[Punktid],tblÕppeainedHinded[Õppeaine],Arvutused!$C19,tblÕppeainedHinded[Tüüp],Arvutused!AC$5)*Sätted!E22,\"\")","v":""},{"$f":"IFERROR(AVERAGEIFS(tblÕppeainedHinded[Punktid],tblÕppeainedHinded[Õppeaine],Arvutused!$C19,tblÕppeainedHinded[Tüüp],Arvutused!AD$5)*Sätted!F22,\"\")","v":""},{"$f":"IFERROR(AVERAGEIFS(tblÕppeainedHinded[Punktid],tblÕppeainedHinded[Õppeaine],Arvutused!$C19,tblÕppeainedHinded[Tüüp],Arvutused!AE$5)*Sätted!G22,\"\")","v":""},{"$f":"IFERROR(AVERAGEIFS(tblÕppeainedHinded[Punktid],tblÕppeainedHinded[Õppeaine],Arvutused!$C19,tblÕppeainedHinded[Tüüp],Arvutused!AF$5)*Sätted!H22,\"\")","v":""},{"$f":"IFERROR(AVERAGEIFS(tblÕppeainedHinded[Punktid],tblÕppeainedHinded[Õppeaine],Arvutused!$C19,tblÕppeainedHinded[Tüüp],Arvutused!AG$5)*Sätted!I22,\"\")","v":""},{"$f":"IFERROR(AVERAGEIFS(tblÕppeainedHinded[Punktid],tblÕppeainedHinded[Õppeaine],Arvutused!$C19,tblÕppeainedHinded[Tüüp],Arvutused!AH$5)*Sätted!J22,\"\")","v":""},{"$f":"IFERROR(AVERAGEIFS(tblÕppeainedHinded[Punktid],tblÕppeainedHinded[Õppeaine],Arvutused!$C19,tblÕppeainedHinded[Tüüp],Arvutused!AI$5)*Sätted!K22,\"\")","v":""},0,{"$f":"SUMIFS(Sätted!E22:K22,Arvutused!AC19:AI19,\">0\")","v":0},"","",""]
[null,null,{"$f":"IF(Sätted!C23=\"\",\"\",Sätted!C23)","v":""},"","","","","","","","","","","","","","","","","","","","","","","","","",{"$f":"IFERROR(AVERAGEIFS(tblÕppeainedHinded[Punktid],tblÕppeainedHinded[Õppeaine],Arvutused!$C20,tblÕppeainedHinded[Tüüp],Arvutused!AC$5)*Sätted!E23,\"\")","v":""},{"$f":"IFERROR(AVERAGEIFS(tblÕppeainedHinded[Punktid],tblÕppeainedHinded[Õppeaine],Arvutused!$C20,tblÕppeainedHinded[Tüüp],Arvutused!AD$5)*Sätted!F23,\"\")","v":""},{"$f":"IFERROR(AVERAGEIFS(tblÕppeainedHinded[Punktid],tblÕppeainedHinded[Õppeaine],Arvutused!$C20,tblÕppeainedHinded[Tüüp],Arvutused!AE$5)*Sätted!G23,\"\")","v":""},{"$f":"IFERROR(AVERAGEIFS(tblÕppeainedHinded[Punktid],tblÕppeainedHinded[Õppeaine],Arvutused!$C20,tblÕppeainedHinded[Tüüp],Arvutused!AF$5)*Sätted!H23,\"\")","v":""},{"$f":"IFERROR(AVERAGEIFS(tblÕppeainedHinded[Punktid],tblÕppeainedHinded[Õppeaine],Arvutused!$C20,tblÕppeainedHinded[Tüüp],Arvutused!AG$5)*Sätted!I23,\"\")","v":""},{"$f":"IFERROR(AVERAGEIFS(tblÕppeainedHinded[Punktid],tblÕppeainedHinded[Õppeaine],Arvutused!$C20,tblÕppeainedHinded[Tüüp],Arvutused!AH$5)*Sätted!J23,\"\")","v":""},{"$f":"IFERROR(AVERAGEIFS(tblÕppeainedHinded[Punktid],tblÕppeainedHinded[Õppeaine],Arvutused!$C20,tblÕppeainedHinded[Tüüp],Arvutused!AI$5)*Sätted!K23,\"\")","v":""},0,{"$f":"SUMIFS(Sätted!E23:K23,Arvutused!AC20:AI20,\">0\")","v":0},"","",""]
[null,null,{"$f":"IF(Sätted!C24=\"\",\"\",Sätted!C24)","v":""},"","","","","","","","","","","","","","","","","","","","","","","","","",{"$f":"IFERROR(AVERAGEIFS(tblÕppeainedHinded[Punktid],tblÕppeainedHinded[Õppeaine],Arvutused!$C21,tblÕppeainedHinded[Tüüp],Arvutused!AC$5)*Sätted!E24,\"\")","v":""},{"$f":"IFERROR(AVERAGEIFS(tblÕppeainedHinded[Punktid],tblÕppeainedHinded[Õppeaine],Arvutused!$C21,tblÕppeainedHinded[Tüüp],Arvutused!AD$5)*Sätted!F24,\"\")","v":""},{"$f":"IFERROR(AVERAGEIFS(tblÕppeainedHinded[Punktid],tblÕppeainedHinded[Õppeaine],Arvutused!$C21,tblÕppeainedHinded[Tüüp],Arvutused!AE$5)*Sätted!G24,\"\")","v":""},{"$f":"IFERROR(AVERAGEIFS(tblÕppeainedHinded[Punktid],tblÕppeainedHinded[Õppeaine],Arvutused!$C21,tblÕppeainedHinded[Tüüp],Arvutused!AF$5)*Sätted!H24,\"\")","v":""},{"$f":"IFERROR(AVERAGEIFS(tblÕppeainedHinded[Punktid],tblÕppeainedHinded[Õppeaine],Arvutused!$C21,tblÕppeainedHinded[Tüüp],Arvutused!AG$5)*Sätted!I24,\"\")","v":""},{"$f":"IFERROR(AVERAGEIFS(tblÕppeainedHinded[Punktid],tblÕppeainedHinded[Õppeaine],Arvutused!$C21,tblÕppeainedHinded[Tüüp],Arvutused!AH$5)*Sätted!J24,\"\")","v":""},{"$f":"IFERROR(AVERAGEIFS(tblÕppeainedHinded[Punktid],tblÕppeainedHinded[Õppeaine],Arvutused!$C21,tblÕppeainedHinded[Tüüp],Arvutused!AI$5)*Sätted!K24,\"\")","v":""},0,{"$f":"SUMIFS(Sätted!E24:K24,Arvutused!AC21:AI21,\">0\")","v":0},"","",""]
[null,null,{"$f":"IF(Sätted!C25=\"\",\"\",Sätted!C25)","v":""},"","","","","","","","","","","","","","","","","","","","","","","","","",{"$f":"IFERROR(AVERAGEIFS(tblÕppeainedHinded[Punktid],tblÕppeainedHinded[Õppeaine],Arvutused!$C22,tblÕppeainedHinded[Tüüp],Arvutused!AC$5)*Sätted!E25,\"\")","v":""},{"$f":"IFERROR(AVERAGEIFS(tblÕppeainedHinded[Punktid],tblÕppeainedHinded[Õppeaine],Arvutused!$C22,tblÕppeainedHinded[Tüüp],Arvutused!AD$5)*Sätted!F25,\"\")","v":""},{"$f":"IFERROR(AVERAGEIFS(tblÕppeainedHinded[Punktid],tblÕppeainedHinded[Õppeaine],Arvutused!$C22,tblÕppeainedHinded[Tüüp],Arvutused!AE$5)*Sätted!G25,\"\")","v":""},{"$f":"IFERROR(AVERAGEIFS(tblÕppeainedHinded[Punktid],tblÕppeainedHinded[Õppeaine],Arvutused!$C22,tblÕppeainedHinded[Tüüp],Arvutused!AF$5)*Sätted!H25,\"\")","v":""},{"$f":"IFERROR(AVERAGEIFS(tblÕppeainedHinded[Punktid],tblÕppeainedHinded[Õppeaine],Arvutused!$C22,tblÕppeainedHinded[Tüüp],Arvutused!AG$5)*Sätted!I25,\"\")","v":""},{"$f":"IFERROR(AVERAGEIFS(tblÕppeainedHinded[Punktid],tblÕppeainedHinded[Õppeaine],Arvutused!$C22,tblÕppeainedHinded[Tüüp],Arvutused!AH$5)*Sätted!J25,\"\")","v":""},{"$f":"IFERROR(AVERAGEIFS(tblÕppeainedHinded[Punktid],tblÕppeainedHinded[Õppeaine],Arvutused!$C22,tblÕppeainedHinded[Tüüp],Arvutused!AI$5)*Sätted!K25,\"\")","v":""},0,{"$f":"SUMIFS(Sätted!E25:K25,Arvutused!AC22:AI22,\">0\")","v":0},"","",""]
[null,null,{"$f":"IF(Sätted!C26=\"\",\"\",Sätted!C26)","v":""},"","","","","","","","","","","","","","","","","","","","","","","","","",{"$f":"IFERROR(AVERAGEIFS(tblÕppeainedHinded[Punktid],tblÕppeainedHinded[Õppeaine],Arvutused!$C23,tblÕppeainedHinded[Tüüp],Arvutused!AC$5)*Sätted!E26,\"\")","v":""},{"$f":"IFERROR(AVERAGEIFS(tblÕppeainedHinded[Punktid],tblÕppeainedHinded[Õppeaine],Arvutused!$C23,tblÕppeainedHinded[Tüüp],Arvutused!AD$5)*Sätted!F26,\"\")","v":""},{"$f":"IFERROR(AVERAGEIFS(tblÕppeainedHinded[Punktid],tblÕppeainedHinded[Õppeaine],Arvutused!$C23,tblÕppeainedHinded[Tüüp],Arvutused!AE$5)*Sätted!G26,\"\")","v":""},{"$f":"IFERROR(AVERAGEIFS(tblÕppeainedHinded[Punktid],tblÕppeainedHinded[Õppeaine],Arvutused!$C23,tblÕppeainedHinded[Tüüp],Arvutused!AF$5)*Sätted!H26,\"\")","v":""},{"$f":"IFERROR(AVERAGEIFS(tblÕppeainedHinded[Punktid],tblÕppeainedHinded[Õppeaine],Arvutused!$C23,tblÕppeainedHinded[Tüüp],Arvutused!AG$5)*Sätted!I26,\"\")","v":""},{"$f":"IFERROR(AVERAGEIFS(tblÕppeainedHinded[Punktid],tblÕppeainedHinded[Õppeaine],Arvutused!$C23,tblÕppeainedHinded[Tüüp],Arvutused!AH$5)*Sätted!J26,\"\")","v":""},{"$f":"IFERROR(AVERAGEIFS(tblÕppeainedHinded[Punktid],tblÕppeainedHinded[Õppeaine],Arvutused!$C23,tblÕppeainedHinded[Tüüp],Arvutused!AI$5)*Sätted!K26,\"\")","v":""},0,{"$f":"SUMIFS(Sätted!E26:K26,Arvutused!AC23:AI23,\">0\")","v":0},"","",""]
[null,null,{"$f":"IF(Sätted!C27=\"\",\"\",Sätted!C27)","v":""},"","","","","","","","","","","","","","","","","","","","","","","","","",{"$f":"IFERROR(AVERAGEIFS(tblÕppeainedHinded[Punktid],tblÕppeainedHinded[Õppeaine],Arvutused!$C24,tblÕppeainedHinded[Tüüp],Arvutused!AC$5)*Sätted!E27,\"\")","v":""},{"$f":"IFERROR(AVERAGEIFS(tblÕppeainedHinded[Punktid],tblÕppeainedHinded[Õppeaine],Arvutused!$C24,tblÕppeainedHinded[Tüüp],Arvutused!AD$5)*Sätted!F27,\"\")","v":""},{"$f":"IFERROR(AVERAGEIFS(tblÕppeainedHinded[Punktid],tblÕppeainedHinded[Õppeaine],Arvutused!$C24,tblÕppeainedHinded[Tüüp],Arvutused!AE$5)*Sätted!G27,\"\")","v":""},{"$f":"IFERROR(AVERAGEIFS(tblÕppeainedHinded[Punktid],tblÕppeainedHinded[Õppeaine],Arvutused!$C24,tblÕppeainedHinded[Tüüp],Arvutused!AF$5)*Sätted!H27,\"\")","v":""},{"$f":"IFERROR(AVERAGEIFS(tblÕppeainedHinded[Punktid],tblÕppeainedHinded[Õppeaine],Arvutused!$C24,tblÕppeainedHinded[Tüüp],Arvutused!AG$5)*Sätted!I27,\"\")","v":""},{"$f":"IFERROR(AVERAGEIFS(tblÕppeainedHinded[Punktid],tblÕppeainedHinded[Õppeaine],Arvutused!$C24,tblÕppeainedHinded[Tüüp],Arvutused!AH$5)*Sätted!J27,\"\")","v":""},{"$f":"IFERROR(AVERAGEIFS(tblÕppeainedHinded[Punktid],tblÕppeainedHinded[Õppeaine],Arvutused!$C24,tblÕppeainedHinded[Tüüp],Arvutused!AI$5)*Sätted!K27,\"\")","v":""},0,{"$f":"SUMIFS(Sätted!E27:K27,Arvutused!AC24:AI24,\">0\")","v":0},"","",""]
[null,null,{"$f":"IF(Sätted!C28=\"\",\"\",Sätted!C28)","v":""},"","","","","","","","","","","","","","","","","","","","","","","","","",{"$f":"IFERROR(AVERAGEIFS(tblÕppeainedHinded[Punktid],tblÕppeainedHinded[Õppeaine],Arvutused!$C25,tblÕppeainedHinded[Tüüp],Arvutused!AC$5)*Sätted!E28,\"\")","v":""},{"$f":"IFERROR(AVERAGEIFS(tblÕppeainedHinded[Punktid],tblÕppeainedHinded[Õppeaine],Arvutused!$C25,tblÕppeainedHinded[Tüüp],Arvutused!AD$5)*Sätted!F28,\"\")","v":""},{"$f":"IFERROR(AVERAGEIFS(tblÕppeainedHinded[Punktid],tblÕppeainedHinded[Õppeaine],Arvutused!$C25,tblÕppeainedHinded[Tüüp],Arvutused!AE$5)*Sätted!G28,\"\")","v":""},{"$f":"IFERROR(AVERAGEIFS(tblÕppeainedHinded[Punktid],tblÕppeainedHinded[Õppeaine],Arvutused!$C25,tblÕppeainedHinded[Tüüp],Arvutused!AF$5)*Sätted!H28,\"\")","v":""},{"$f":"IFERROR(AVERAGEIFS(tblÕppeainedHinded[Punktid],tblÕppeainedHinded[Õppeaine],Arvutused!$C25,tblÕppeainedHinded[Tüüp],Arvutused!AG$5)*Sätted!I28,\"\")","v":""},{"$f":"IFERROR(AVERAGEIFS(tblÕppeainedHinded[Punktid],tblÕppeainedHinded[Õppeaine],Arvutused!$C25,tblÕppeainedHinded[Tüüp],Arvutused!AH$5)*Sätted!J28,\"\")","v":""},{"$f":"IFERROR(AVERAGEIFS(tblÕppeainedHinded[Punktid],tblÕppeainedHinded[Õppeaine],Arvutused!$C25,tblÕppeainedHinded[Tüüp],Arvutused!AI$5)*Sätted!K28,\"\")","v":""},0,{"$f":"SUMIFS(Sätted!E28:K28,Arvutused!AC25:AI25,\">0\")","v":0},"","",""]
[null,null,{"$f":"IF(Sätted!C29=\"\",\"\",Sätted!C29)","v":""},"","","","","","","","","","","","","","","","","","","","","","","","","",{"$f":"IFERROR(AVERAGEIFS(tblÕppeainedHinded[Punktid],tblÕppeainedHinded[Õppeaine],Arvutused!$C26,tblÕppeainedHinded[Tüüp],Arvutused!AC$5)*Sätted!E29,\"\")","v":""},{"$f":"IFERROR(AVERAGEIFS(tblÕppeainedHinded[Punktid],tblÕppeainedHinded[Õppeaine],Arvutused!$C26,tblÕppeainedHinded[Tüüp],Arvutused!AD$5)*Sätted!F29,\"\")","v":""},{"$f":"IFERROR(AVERAGEIFS(tblÕppeainedHinded[Punktid],tblÕppeainedHinded[Õppeaine],Arvutused!$C26,tblÕppeainedHinded[Tüüp],Arvutused!AE$5)*Sätted!G29,\"\")","v":""},{"$f":"IFERROR(AVERAGEIFS(tblÕppeainedHinded[Punktid],tblÕppeainedHinded[Õppeaine],Arvutused!$C26,tblÕppeainedHinded[Tüüp],Arvutused!AF$5)*Sätted!H29,\"\")","v":""},{"$f":"IFERROR(AVERAGEIFS(tblÕppeainedHinded[Punktid],tblÕppeainedHinded[Õppeaine],Arvutused!$C26,tblÕppeainedHinded[Tüüp],Arvutused!AG$5)*Sätted!I29,\"\")","v":""},{"$f":"IFERROR(AVERAGEIFS(tblÕppeainedHinded[Punktid],tblÕppeainedHinded[Õppeaine],Arvutused!$C26,tblÕppeainedHinded[Tüüp],Arvutused!AH$5)*Sätted!J29,\"\")","v":""},{"$f":"IFERROR(AVERAGEIFS(tblÕppeainedHinded[Punktid],tblÕppeainedHinded[Õppeaine],Arvutused!$C26,tblÕppeainedHinded[Tüüp],Arvutused!AI$5)*Sätted!K29,\"\")","v":""},0,{"$f":"SUMIFS(Sätted!E29:K29,Arvutused!AC26:AI26,\">0\")","v":0},"","",""]
[null,null,{"$f":"IF(Sätted!C30=\"\",\"\",Sätted!C30)","v":""},"","","","","","","","","","","","","","","","","","","","","","","","","",{"$f":"IFERROR(AVERAGEIFS(tblÕppeainedHinded[Punktid],tblÕppeainedHinded[Õppeaine],Arvutused!$C27,tblÕppeainedHinded[Tüüp],Arvutused!AC$5)*Sätted!E30,\"\")","v":""},{"$f":"IFERROR(AVERAGEIFS(tblÕppeainedHinded[Punktid],tblÕppeainedHinded[Õppeaine],Arvutused!$C27,tblÕppeainedHinded[Tüüp],Arvutused!AD$5)*Sätted!F30,\"\")","v":""},{"$f":"IFERROR(AVERAGEIFS(tblÕppeainedHinded[Punktid],tblÕppeainedHinded[Õppeaine],Arvutused!$C27,tblÕppeainedHinded[Tüüp],Arvutused!AE$5)*Sätted!G30,\"\")","v":""},{"$f":"IFERROR(AVERAGEIFS(tblÕppeainedHinded[Punktid],tblÕppeainedHinded[Õppeaine],Arvutused!$C27,tblÕppeainedHinded[Tüüp],Arvutused!AF$5)*Sätted!H30,\"\")","v":""},{"$f":"IFERROR(AVERAGEIFS(tblÕppeainedHinded[Punktid],tblÕppeainedHinded[Õppeaine],Arvutused!$C27,tblÕppeainedHinded[Tüüp],Arvutused!AG$5)*Sätted!I30,\"\")","v":""},{"$f":"IFERROR(AVERAGEIFS(tblÕppeainedHinded[Punktid],tblÕppeainedHinded[Õppeaine],Arvutused!$C27,tblÕppeainedHinded[Tüüp],Arvutused!AH$5)*Sätted!J30,\"\")","v":""},{"$f":"IFERROR(AVERAGEIFS(tblÕppeainedHinded[Punktid],tblÕppeainedHinded[Õppeaine],Arvutused!$C27,tblÕppeainedHinded[Tüüp],Arvutused!AI$5)*Sätted!K30,\"\")","v":""},0,{"$f":"SUMIFS(Sätted!E30:K30,Arvutused!AC27:AI27,\">0\")","v":0},"","",""]
[null,null,{"$f":"IF(Sätted!C31=\"\",\"\",Sätted!C31)","v":""},"","","","","","","","","","","","","","","","","","","","","","","","","",{"$f":"IFERROR(AVERAGEIFS(tblÕppeainedHinded[Punktid],tblÕppeainedHinded[Õppeaine],Arvutused!$C28,tblÕppeainedHinded[Tüüp],Arvutused!AC$5)*Sätted!E31,\"\")","v":""},{"$f":"IFERROR(AVERAGEIFS(tblÕppeainedHinded[Punktid],tblÕppeainedHinded[Õppeaine],Arvutused!$C28,tblÕppeainedHinded[Tüüp],Arvutused!AD$5)*Sätted!F31,\"\")","v":""},{"$f":"IFERROR(AVERAGEIFS(tblÕppeainedHinded[Punktid],tblÕppeainedHinded[Õppeaine],Arvutused!$C28,tblÕppeainedHinded[Tüüp],Arvutused!AE$5)*Sätted!G31,\"\")","v":""},{"$f":"IFERROR(AVERAGEIFS(tblÕppeainedHinded[Punktid],tblÕppeainedHinded[Õppeaine],Arvutused!$C28,tblÕppeainedHinded[Tüüp],Arvutused!AF$5)*Sätted!H31,\"\")","v":""},{"$f":"IFERROR(AVERAGEIFS(tblÕppeainedHinded[Punktid],tblÕppeainedHinded[Õppeaine],Arvutused!$C28,tblÕppeainedHinded[Tüüp],Arvutused!AG$5)*Sätted!I31,\"\")","v":""},{"$f":"IFERROR(AVERAGEIFS(tblÕppeainedHinded[Punktid],tblÕppeainedHinded[Õppeaine],Arvutused!$C28,tblÕppeainedHinded[Tüüp],Arvutused!AH$5)*Sätted!J31,\"\")","v":""},{"$f":"IFERROR(AVERAGEIFS(tblÕppeainedHinded[Punktid],tblÕppeainedHinded[Õppeaine],Arvutused!$C28,tblÕppeainedHinded[Tüüp],Arvutused!AI$5)*Sätted!K31,\"\")","v":""},0,{"$f":"SUMIFS(Sätted!E31:K31,Arvutused!AC28:AI28,\">0\")","v":0},"","",""]
[null,null,{"$f":"IF(Sätted!C32=\"\",\"\",Sätted!C32)","v":""},"","","","","","","","","","","","","","","","","","","","","","","","","",{"$f":"IFERROR(AVERAGEIFS(tblÕppeainedHinded[Punktid],tblÕppeainedHinded[Õppeaine],Arvutused!$C29,tblÕppeainedHinded[Tüüp],Arvutused!AC$5)*Sätted!E32,\"\")","v":""},{"$f":"IFERROR(AVERAGEIFS(tblÕppeainedHinded[Punktid],tblÕppeainedHinded[Õppeaine],Arvutused!$C29,tblÕppeainedHinded[Tüüp],Arvutused!AD$5)*Sätted!F32,\"\")","v":""},{"$f":"IFERROR(AVERAGEIFS(tblÕppeainedHinded[Punktid],tblÕppeainedHinded[Õppeaine],Arvutused!$C29,tblÕppeainedHinded[Tüüp],Arvutused!AE$5)*Sätted!G32,\"\")","v":""},{"$f":"IFERROR(AVERAGEIFS(tblÕppeainedHinded[Punktid],tblÕppeainedHinded[Õppeaine],Arvutused!$C29,tblÕppeainedHinded[Tüüp],Arvutused!AF$5)*Sätted!H32,\"\")","v":""},{"$f":"IFERROR(AVERAGEIFS(tblÕppeainedHinded[Punktid],tblÕppeainedHinded[Õppeaine],Arvutused!$C29,tblÕppeainedHinded[Tüüp],Arvutused!AG$5)*Sätted!I32,\"\")","v":""},{"$f":"IFERROR(AVERAGEIFS(tblÕppeainedHinded[Punktid],tblÕppeainedHinded[Õppeaine],Arvutused!$C29,tblÕppeainedHinded[Tüüp],Arvutused!AH$5)*Sätted!J32,\"\")","v":""},{"$f":"IFERROR(AVERAGEIFS(tblÕppeainedHinded[Punktid],tblÕppeainedHinded[Õppeaine],Arvutused!$C29,tblÕppeainedHinded[Tüüp],Arvutused!AI$5)*Sätted!K32,\"\")","v":""},0,{"$f":"SUMIFS(Sätted!E32:K32,Arvutused!AC29:AI29,\">0\")","v":0},"","",""]
[null,null,{"$f":"IF(Sätted!C33=\"\",\"\",Sätted!C33)","v":""},"","","","","","","","","","","","","","","","","","","","","","","","","",{"$f":"IFERROR(AVERAGEIFS(tblÕppeainedHinded[Punktid],tblÕppeainedHinded[Õppeaine],Arvutused!$C30,tblÕppeainedHinded[Tüüp],Arvutused!AC$5)*Sätted!E33,\"\")","v":""},{"$f":"IFERROR(AVERAGEIFS(tblÕppeainedHinded[Punktid],tblÕppeainedHinded[Õppeaine],Arvutused!$C30,tblÕppeainedHinded[Tüüp],Arvutused!AD$5)*Sätted!F33,\"\")","v":""},{"$f":"IFERROR(AVERAGEIFS(tblÕppeainedHinded[Punktid],tblÕppeainedHinded[Õppeaine],Arvutused!$C30,tblÕppeainedHinded[Tüüp],Arvutused!AE$5)*Sätted!G33,\"\")","v":""},{"$f":"IFERROR(AVERAGEIFS(tblÕppeainedHinded[Punktid],tblÕppeainedHinded[Õppeaine],Arvutused!$C30,tblÕppeainedHinded[Tüüp],Arvutused!AF$5)*Sätted!H33,\"\")","v":""},{"$f":"IFERROR(AVERAGEIFS(tblÕppeainedHinded[Punktid],tblÕppeainedHinded[Õppeaine],Arvutused!$C30,tblÕppeainedHinded[Tüüp],Arvutused!AG$5)*Sätted!I33,\"\")","v":""},{"$f":"IFERROR(AVERAGEIFS(tblÕppeainedHinded[Punktid],tblÕppeainedHinded[Õppeaine],Arvutused!$C30,tblÕppeainedHinded[Tüüp],Arvutused!AH$5)*Sätted!J33,\"\")","v":""},{"$f":"IFERROR(AVERAGEIFS(tblÕppeainedHinded[Punktid],tblÕppeainedHinded[Õppeaine],Arvutused!$C30,tblÕppeainedHinded[Tüüp],Arvutused!AI$5)*Sätted!K33,\"\")","v":""},0,{"$f":"SUMIFS(Sätted!E33:K33,Arvutused!AC30:AI30,\">0\")","v":0},"","",""]
[]
[]
[null,1,{"$f":"'Punktide jälgimine'!C4&COUNTIF('Punktide jälgimine'!$C$4:C4,'Punktide jälgimine'!C4)","v":"Prantsuse keel1"}]
[null,2,{"$f":"'Punktide jälgimine'!C5&COUNTIF('Punktide jälgimine'!$C$4:C5,'Punktide jälgimine'!C5)","v":"Programmeerimine Java-keeles1"}]
[null,3,{"$f":"'Punktide jälgimine'!C6&COUNTIF('Punktide jälgimine'!$C$4:C6,'Punktide jälgimine'!C6)","v":"Hispaania keel1"}]
[null,4,{"$f":"'Punktide jälgimine'!C7&COUNTIF('Punktide jälgimine'!$C$4:C7,'Punktide jälgimine'!C7)","v":"Teoreetiline füüsika1"}]
[null,5,{"$f":"'Punktide jälgimine'!C8&COUNTIF('Punktide jälgimine'!$C$4:C8,'Punktide jälgimine'!C8)","v":"Prantsuse keel2"}]
[null,6,{"$f":"'Punktide jälgimine'!C9&COUNTIF('Punktide jälgimine'!$C$4:C9,'Punktide jälgimine'!C9)","v":"Prantsuse keel3"}]
[null,7,{"$f":"'Punktide jälgimine'!C10&COUNTIF('Punktide jälgimine'!$C$4:C10,'Punktide jälgimine'!C10)","v":"Kirjand1"}]
[null,8,{"$f":"'Punktide jälgimine'!C11&COUNTIF('Punktide jälgimine'!$C$4:C11,'Punktide jälgimine'!C11)","v":"Matemaatika 11"}]
[null,9,{"$f":"'Punktide jälgimine'!C12&COUNTIF('Punktide jälgimine'!$C$4:C12,'Punktide jälgimine'!C12)","v":"Matemaatika 21"}]
[null,10,{"$f":"'Punktide jälgimine'!C13&COUNTIF('Punktide jälgimine'!$C$4:C14,'Punktide jälgimine'!C13)","v":"Matemaatika 12"}]
[null,11,{"$f":"'Punktide jälgimine'!C14&COUNTIF('Punktide jälgimine'!$C$4:C14,'Punktide jälgimine'!C14)","v":"Matemaatika 22"}]
[null,12,{"$f":"'Punktide jälgimine'!C15&COUNTIF('Punktide jälgimine'!$C$4:C15,'Punktide jälgimine'!C15)","v":"0"}]
[null,13,{"$f":"'Punktide jälgimine'!C16&COUNTIF('Punktide jälgimine'!$C$4:C16,'Punktide jälgimine'!C16)","v":"0"}]
[null,14,{"$f":"'Punktide jälgimine'!C17&COUNTIF('Punktide jälgimine'!$C$4:C17,'Punktide jälgimine'!C17)","v":"0"}]
[null,15,{"$f":"'Punktide jälgimine'!C18&COUNTIF('Punktide jälgimine'!$C$4:C18,'Punktide jälgimine'!C18)","v":"0"}]
[null,16,{"$f":"'Punktide jälgimine'!C19&COUNTIF('Punktide jälgimine'!$C$4:C19,'Punktide jälgimine'!C19)","v":"0"}]
[null,17,{"$f":"'Punktide jälgimine'!C20&COUNTIF('Punktide jälgimine'!$C$4:C20,'Punktide jälgimine'!C20)","v":"0"}]
[null,18,{"$f":"'Punktide jälgimine'!C21&COUNTIF('Punktide jälgimine'!$C$4:C21,'Punktide jälgimine'!C21)","v":"0"}]
[null,19,{"$f":"'Punktide jälgimine'!C22&COUNTIF('Punktide jälgimine'!$C$4:C22,'Punktide jälgimine'!C22)","v":"0"}]
[null,20,{"$f":"'Punktide jälgimine'!C23&COUNTIF('Punktide jälgimine'!$C$4:C23,'Punktide jälgimine'!C23)","v":"0"}]
[null,21,{"$f":"'Punktide jälgimine'!C24&COUNTIF('Punktide jälgimine'!$C$4:C24,'Punktide jälgimine'!C24)","v":"0"}]
[null,22,{"$f":"'Punktide jälgimine'!C25&COUNTIF('Punktide jälgimine'!$C$4:C25,'Punktide jälgimine'!C25)","v":"0"}]
[null,23,{"$f":"'Punktide jälgimine'!C26&COUNTIF('Punktide jälgimine'!$C$4:C26,'Punktide jälgimine'!C26)","v":"0"}]
[null,24,{"$f":"'Punktide jälgimine'!C27&COUNTIF('Punktide jälgimine'!$C$4:C27,'Punktide jälgimine'!C27)","v":"0"}]
[null,25,{"$f":"'Punktide jälgimine'!C28&COUNTIF('Punktide jälgimine'!$C$4:C28,'Punktide jälgimine'!C28)","v":"0"}]
[null,26,{"$f":"'Punktide jälgimine'!C29&COUNTIF('Punktide jälgimine'!$C$4:C29,'Punktide jälgimine'!C29)","v":"0"}]
[null,27,{"$f":"'Punktide jälgimine'!C30&COUNTIF('Punktide jälgimine'!$C$4:C30,'Punktide jälgimine'!C30)","v":"0"}]
[null,28,{"$f":"'Punktide jälgimine'!C31&COUNTIF('Punktide jälgimine'!$C$4:C31,'Punktide jälgimine'!C31)","v":"0"}]
[null,29,{"$f":"'Punktide jälgimine'!C32&COUNTIF('Punktide jälgimine'!$C$4:C32,'Punktide jälgimine'!C32)","v":"0"}]
[null,30,{"$f":"'Punktide jälgimine'!C33&COUNTIF('Punktide jälgimine'!$C$4:C33,'Punktide jälgimine'!C33)","v":"0"}]
[null,31,{"$f":"'Punktide jälgimine'!C34&COUNTIF('Punktide jälgimine'!$C$4:C34,'Punktide jälgimine'!C34)","v":"0"}]
[null,32,{"$f":"'Punktide jälgimine'!C35&COUNTIF('Punktide jälgimine'!$C$4:C35,'Punktide jälgimine'!C35)","v":"0"}]
[null,33,{"$f":"'Punktide jälgimine'!C36&COUNTIF('Punktide jälgimine'!$C$4:C36,'Punktide jälgimine'!C36)","v":"0"}]
[null,34,{"$f":"'Punktide jälgimine'!C37&COUNTIF('Punktide jälgimine'!$C$4:C37,'Punktide jälgimine'!C37)","v":"0"}]
[null,35,{"$f":"'Punktide jälgimine'!C38&COUNTIF('Punktide jälgimine'!$C$4:C38,'Punktide jälgimine'!C38)","v":"0"}]
[null,36,{"$f":"'Punktide jälgimine'!C39&COUNTIF('Punktide jälgimine'!$C$4:C39,'Punktide jälgimine'!C39)","v":"0"}]
[null,37,{"$f":"'Punktide jälgimine'!C40&COUNTIF('Punktide jälgimine'!$C$4:C40,'Punktide jälgimine'!C40)","v":"0"}]
[null,38,{"$f":"'Punktide jälgimine'!C41&COUNTIF('Punktide jälgimine'!$C$4:C41,'Punktide jälgimine'!C41)","v":"0"}]
[null,39,{"$f":"'Punktide jälgimine'!C42&COUNTIF('Punktide jälgimine'!$C$4:C42,'Punktide jälgimine'!C42)","v":"0"}]
[null,40,{"$f":"'Punktide jälgimine'!C43&COUNTIF('Punktide jälgimine'!$C$4:C43,'Punktide jälgimine'!C43)","v":"0"}]
[null,41,{"$f":"'Punktide jälgimine'!C44&COUNTIF('Punktide jälgimine'!$C$4:C44,'Punktide jälgimine'!C44)","v":"0"}]
[null,42,{"$f":"'Punktide jälgimine'!C45&COUNTIF('Punktide jälgimine'!$C$4:C45,'Punktide jälgimine'!C45)","v":"0"}]
[null,43,{"$f":"'Punktide jälgimine'!C46&COUNTIF('Punktide jälgimine'!$C$4:C46,'Punktide jälgimine'!C46)","v":"0"}]
[null,44,{"$f":"'Punktide jälgimine'!C47&COUNTIF('Punktide jälgimine'!$C$4:C47,'Punktide jälgimine'!C47)","v":"0"}]
[null,45,{"$f":"'Punktide jälgimine'!C48&COUNTIF('Punktide jälgimine'!$C$4:C48,'Punktide jälgimine'!C48)","v":"0"}]
[null,46,{"$f":"'Punktide jälgimine'!C49&COUNTIF('Punktide jälgimine'!$C$4:C49,'Punktide jälgimine'!C49)","v":"0"}]
[null,47,{"$f":"'Punktide jälgimine'!C50&COUNTIF('Punktide jälgimine'!$C$4:C50,'Punktide jälgimine'!C50)","v":"0"}]
[null,48,{"$f":"'Punktide jälgimine'!C51&COUNTIF('Punktide jälgimine'!$C$4:C51,'Punktide jälgimine'!C51)","v":"0"}]
[null,49,{"$f":"'Punktide jälgimine'!C52&COUNTIF('Punktide jälgimine'!$C$4:C52,'Punktide jälgimine'!C52)","v":"0"}]
[null,50,{"$f":"'Punktide jälgimine'!C53&COUNTIF('Punktide jälgimine'!$C$4:C53,'Punktide jälgimine'!C53)","v":"0"}]
[null,51,{"$f":"'Punktide jälgimine'!C54&COUNTIF('Punktide jälgimine'!$C$4:C54,'Punktide jälgimine'!C54)","v":"0"}]
[null,52,{"$f":"'Punktide jälgimine'!C55&COUNTIF('Punktide jälgimine'!$C$4:C55,'Punktide jälgimine'!C55)","v":"0"}]
[null,53,{"$f":"'Punktide jälgimine'!C56&COUNTIF('Punktide jälgimine'!$C$4:C56,'Punktide jälgimine'!C56)","v":"0"}]
[null,54,{"$f":"'Punktide jälgimine'!C57&COUNTIF('Punktide jälgimine'!$C$4:C57,'Punktide jälgimine'!C57)","v":"0"}]
[null,55,{"$f":"'Punktide jälgimine'!C58&COUNTIF('Punktide jälgimine'!$C$4:C58,'Punktide jälgimine'!C58)","v":"0"}]
[null,56,{"$f":"'Punktide jälgimine'!C59&COUNTIF('Punktide jälgimine'!$C$4:C59,'Punktide jälgimine'!C59)","v":"0"}]
[null,57,{"$f":"'Punktide jälgimine'!C60&COUNTIF('Punktide jälgimine'!$C$4:C60,'Punktide jälgimine'!C60)","v":"0"}]
[null,58,{"$f":"'Punktide jälgimine'!C61&COUNTIF('Punktide jälgimine'!$C$4:C61,'Punktide jälgimine'!C61)","v":"0"}]
[null,59,{"$f":"'Punktide jälgimine'!C62&COUNTIF('Punktide jälgimine'!$C$4:C62,'Punktide jälgimine'!C62)","v":"0"}]
[null,60,{"$f":"'Punktide jälgimine'!C63&COUNTIF('Punktide jälgimine'!$C$4:C63,'Punktide jälgimine'!C63)","v":"0"}]
[null,61,{"$f":"'Punktide jälgimine'!C64&COUNTIF('Punktide jälgimine'!$C$4:C64,'Punktide jälgimine'!C64)","v":"0"}]
[null,62,{"$f":"'Punktide jälgimine'!C65&COUNTIF('Punktide jälgimine'!$C$4:C65,'Punktide jälgimine'!C65)","v":"0"}]
[null,63,{"$f":"'Punktide jälgimine'!C66&COUNTIF('Punktide jälgimine'!$C$4:C66,'Punktide jälgimine'!C66)","v":"0"}]
[null,64,{"$f":"'Punktide jälgimine'!C67&COUNTIF('Punktide jälgimine'!$C$4:C67,'Punktide jälgimine'!C67)","v":"0"}]
[null,65,{"$f":"'Punktide jälgimine'!C68&COUNTIF('Punktide jälgimine'!$C$4:C68,'Punktide jälgimine'!C68)","v":"0"}]
[null,66,{"$f":"'Punktide jälgimine'!C69&COUNTIF('Punktide jälgimine'!$C$4:C69,'Punktide jälgimine'!C69)","v":"0"}]
[null,67,{"$f":"'Punktide jälgimine'!C70&COUNTIF('Punktide jälgimine'!$C$4:C70,'Punktide jälgimine'!C70)","v":"0"}]
[null,68,{"$f":"'Punktide jälgimine'!C71&COUNTIF('Punktide jälgimine'!$C$4:C71,'Punktide jälgimine'!C71)","v":"0"}]
[null,69,{"$f":"'Punktide jälgimine'!C72&COUNTIF('Punktide jälgimine'!$C$4:C72,'Punktide jälgimine'!C72)","v":"0"}]
[null,70,{"$f":"'Punktide jälgimine'!C73&COUNTIF('Punktide jälgimine'!$C$4:C73,'Punktide jälgimine'!C73)","v":"0"}]
[null,71,{"$f":"'Punktide jälgimine'!C74&COUNTIF('Punktide jälgimine'!$C$4:C74,'Punktide jälgimine'!C74)","v":"0"}]
[null,72,{"$f":"'Punktide jälgimine'!C75&COUNTIF('Punktide jälgimine'!$C$4:C75,'Punktide jälgimine'!C75)","v":"0"}]
[null,73,{"$f":"'Punktide jälgimine'!C76&COUNTIF('Punktide jälgimine'!$C$4:C76,'Punktide jälgimine'!C76)","v":"0"}]
[null,74,{"$f":"'Punktide jälgimine'!C77&COUNTIF('Punktide jälgimine'!$C$4:C77,'Punktide jälgimine'!C77)","v":"0"}]
[null,75,{"$f":"'Punktide jälgimine'!C78&COUNTIF('Punktide jälgimine'!$C$4:C78,'Punktide jälgimine'!C78)","v":"0"}]
[null,76,{"$f":"'Punktide jälgimine'!C79&COUNTIF('Punktide jälgimine'!$C$4:C79,'Punktide jälgimine'!C79)","v":"0"}]
[null,77,{"$f":"'Punktide jälgimine'!C80&COUNTIF('Punktide jälgimine'!$C$4:C80,'Punktide jälgimine'!C80)","v":"0"}]
[null,78,{"$f":"'Punktide jälgimine'!C81&COUNTIF('Punktide jälgimine'!$C$4:C81,'Punktide jälgimine'!C81)","v":"0"}]
[null,79,{"$f":"'Punktide jälgimine'!C82&COUNTIF('Punktide jälgimine'!$C$4:C82,'Punktide jälgimine'!C82)","v":"0"}]
[null,80,{"$f":"'Punktide jälgimine'!C83&COUNTIF('Punktide jälgimine'!$C$4:C83,'Punktide jälgimine'!C83)","v":"0"}]
[null,81,{"$f":"'Punktide jälgimine'!C84&COUNTIF('Punktide jälgimine'!$C$4:C84,'Punktide jälgimine'!C84)","v":"0"}]
[null,82,{"$f":"'Punktide jälgimine'!C85&COUNTIF('Punktide jälgimine'!$C$4:C85,'Punktide jälgimine'!C85)","v":"0"}]
[null,83,{"$f":"'Punktide jälgimine'!C86&COUNTIF('Punktide jälgimine'!$C$4:C86,'Punktide jälgimine'!C86)","v":"0"}]
[null,84,{"$f":"'Punktide jälgimine'!C87&COUNTIF('Punktide jälgimine'!$C$4:C87,'Punktide jälgimine'!C87)","v":"0"}]
[null,85,{"$f":"'Punktide jälgimine'!C88&COUNTIF('Punktide jälgimine'!$C$4:C88,'Punktide jälgimine'!C88)","v":"0"}]
[null,86,{"$f":"'Punktide jälgimine'!C89&COUNTIF('Punktide jälgimine'!$C$4:C89,'Punktide jälgimine'!C89)","v":"0"}]
[null,87,{"$f":"'Punktide jälgimine'!C90&COUNTIF('Punktide jälgimine'!$C$4:C90,'Punktide jälgimine'!C90)","v":"0"}]
[null,88,{"$f":"'Punktide jälgimine'!C91&COUNTIF('Punktide jälgimine'!$C$4:C91,'Punktide jälgimine'!C91)","v":"0"}]
[null,89,{"$f":"'Punktide jälgimine'!C92&COUNTIF('Punktide jälgimine'!$C$4:C92,'Punktide jälgimine'!C92)","v":"0"}]
[null,90,{"$f":"'Punktide jälgimine'!C93&COUNTIF('Punktide jälgimine'!$C$4:C93,'Punktide jälgimine'!C93)","v":"0"}]
[null,91,{"$f":"'Punktide jälgimine'!C94&COUNTIF('Punktide jälgimine'!$C$4:C94,'Punktide jälgimine'!C94)","v":"0"}]
[null,92,{"$f":"'Punktide jälgimine'!C95&COUNTIF('Punktide jälgimine'!$C$4:C95,'Punktide jälgimine'!C95)","v":"0"}]
[null,93,{"$f":"'Punktide jälgimine'!C96&COUNTIF('Punktide jälgimine'!$C$4:C96,'Punktide jälgimine'!C96)","v":"0"}]
[null,94,{"$f":"'Punktide jälgimine'!C97&COUNTIF('Punktide jälgimine'!$C$4:C97,'Punktide jälgimine'!C97)","v":"0"}]
[null,95,{"$f":"'Punktide jälgimine'!C98&COUNTIF('Punktide jälgimine'!$C$4:C98,'Punktide jälgimine'!C98)","v":"0"}]
[null,96,{"$f":"'Punktide jälgimine'!C99&COUNTIF('Punktide jälgimine'!$C$4:C99,'Punktide jälgimine'!C99)","v":"0"}]
[null,97,{"$f":"'Punktide jälgimine'!C100&COUNTIF('Punktide jälgimine'!$C$4:C100,'Punktide jälgimine'!C100)","v":"0"}]
[null,98,{"$f":"'Punktide jälgimine'!C101&COUNTIF('Punktide jälgimine'!$C$4:C101,'Punktide jälgimine'!C101)","v":"0"}]
[null,99,{"$f":"'Punktide jälgimine'!C102&COUNTIF('Punktide jälgimine'!$C$4:C102,'Punktide jälgimine'!C102)","v":"0"}]
[null,100,{"$f":"'Punktide jälgimine'!C103&COUNTIF('Punktide jälgimine'!$C$4:C103,'Punktide jälgimine'!C103)","v":"0"}]
[null,101,{"$f":"'Punktide jälgimine'!C104&COUNTIF('Punktide jälgimine'!$C$4:C104,'Punktide jälgimine'!C104)","v":"0"}]
[null,102,{"$f":"'Punktide jälgimine'!C105&COUNTIF('Punktide jälgimine'!$C$4:C105,'Punktide jälgimine'!C105)","v":"0"}]
[null,103,{"$f":"'Punktide jälgimine'!C106&COUNTIF('Punktide jälgimine'!$C$4:C106,'Punktide jälgimine'!C106)","v":"0"}]
[null,104,{"$f":"'Punktide jälgimine'!C107&COUNTIF('Punktide jälgimine'!$C$4:C107,'Punktide jälgimine'!C107)","v":"0"}]
[null,105,{"$f":"'Punktide jälgimine'!C108&COUNTIF('Punktide jälgimine'!$C$4:C108,'Punktide jälgimine'!C108)","v":"0"}]
[null,106,{"$f":"'Punktide jälgimine'!C109&COUNTIF('Punktide jälgimine'!$C$4:C109,'Punktide jälgimine'!C109)","v":"0"}]
[null,107,{"$f":"'Punktide jälgimine'!C110&COUNTIF('Punktide jälgimine'!$C$4:C110,'Punktide jälgimine'!C110)","v":"0"}]
[null,108,{"$f":"'Punktide jälgimine'!C111&COUNTIF('Punktide jälgimine'!$C$4:C111,'Punktide jälgimine'!C111)","v":"0"}]
[null,109,{"$f":"'Punktide jälgimine'!C112&COUNTIF('Punktide jälgimine'!$C$4:C112,'Punktide jälgimine'!C112)","v":"0"}]
[null,110,{"$f":"'Punktide jälgimine'!C113&COUNTIF('Punktide jälgimine'!$C$4:C113,'Punktide jälgimine'!C113)","v":"0"}]
[null,111,{"$f":"'Punktide jälgimine'!C114&COUNTIF('Punktide jälgimine'!$C$4:C114,'Punktide jälgimine'!C114)","v":"0"}]
[null,112,{"$f":"'Punktide jälgimine'!C115&COUNTIF('Punktide jälgimine'!$C$4:C115,'Punktide jälgimine'!C115)","v":"0"}]
[null,113,{"$f":"'Punktide jälgimine'!C116&COUNTIF('Punktide jälgimine'!$C$4:C116,'Punktide jälgimine'!C116)","v":"0"}]
[null,114,{"$f":"'Punktide jälgimine'!C117&COUNTIF('Punktide jälgimine'!$C$4:C117,'Punktide jälgimine'!C117)","v":"0"}]
[null,115,{"$f":"'Punktide jälgimine'!C118&COUNTIF('Punktide jälgimine'!$C$4:C118,'Punktide jälgimine'!C118)","v":"0"}]
[null,116,{"$f":"'Punktide jälgimine'!C119&COUNTIF('Punktide jälgimine'!$C$4:C119,'Punktide jälgimine'!C119)","v":"0"}]
[null,117,{"$f":"'Punktide jälgimine'!C120&COUNTIF('Punktide jälgimine'!$C$4:C120,'Punktide jälgimine'!C120)","v":"0"}]
[null,118,{"$f":"'Punktide jälgimine'!C121&COUNTIF('Punktide jälgimine'!$C$4:C121,'Punktide jälgimine'!C121)","v":"0"}]
[null,119,{"$f":"'Punktide jälgimine'!C122&COUNTIF('Punktide jälgimine'!$C$4:C122,'Punktide jälgimine'!C122)","v":"0"}]
[null,120,{"$f":"'Punktide jälgimine'!C123&COUNTIF('Punktide jälgimine'!$C$4:C123,'Punktide jälgimine'!C123)","v":"0"}]
[null,121,{"$f":"'Punktide jälgimine'!C124&COUNTIF('Punktide jälgimine'!$C$4:C124,'Punktide jälgimine'!C124)","v":"0"}]
[null,122,{"$f":"'Punktide jälgimine'!C125&COUNTIF('Punktide jälgimine'!$C$4:C125,'Punktide jälgimine'!C125)","v":"0"}]
[null,123,{"$f":"'Punktide jälgimine'!C126&COUNTIF('Punktide jälgimine'!$C$4:C126,'Punktide jälgimine'!C126)","v":"0"}]
[null,124,{"$f":"'Punktide jälgimine'!C127&COUNTIF('Punktide jälgimine'!$C$4:C127,'Punktide jälgimine'!C127)","v":"0"}]
[null,125,{"$f":"'Punktide jälgimine'!C128&COUNTIF('Punktide jälgimine'!$C$4:C128,'Punktide jälgimine'!C128)","v":"0"}]
[null,126,{"$f":"'Punktide jälgimine'!C129&COUNTIF('Punktide jälgimine'!$C$4:C129,'Punktide jälgimine'!C129)","v":"0"}]
[null,127,{"$f":"'Punktide jälgimine'!C130&COUNTIF('Punktide jälgimine'!$C$4:C130,'Punktide jälgimine'!C130)","v":"0"}]
[null,128,{"$f":"'Punktide jälgimine'!C131&COUNTIF('Punktide jälgimine'!$C$4:C131,'Punktide jälgimine'!C131)","v":"0"}]
[null,129,{"$f":"'Punktide jälgimine'!C132&COUNTIF('Punktide jälgimine'!$C$4:C132,'Punktide jälgimine'!C132)","v":"0"}]
[null,130,{"$f":"'Punktide jälgimine'!C133&COUNTIF('Punktide jälgimine'!$C$4:C133,'Punktide jälgimine'!C133)","v":"0"}]
[null,131,{"$f":"'Punktide jälgimine'!C134&COUNTIF('Punktide jälgimine'!$C$4:C134,'Punktide jälgimine'!C134)","v":"0"}]
[null,132,{"$f":"'Punktide jälgimine'!C135&COUNTIF('Punktide jälgimine'!$C$4:C135,'Punktide jälgimine'!C135)","v":"0"}]
[null,133,{"$f":"'Punktide jälgimine'!C136&COUNTIF('Punktide jälgimine'!$C$4:C136,'Punktide jälgimine'!C136)","v":"0"}]
[null,134,{"$f":"'Punktide jälgimine'!C137&COUNTIF('Punktide jälgimine'!$C$4:C137,'Punktide jälgimine'!C137)","v":"0"}]
[null,135,{"$f":"'Punktide jälgimine'!C138&COUNTIF('Punktide jälgimine'!$C$4:C138,'Punktide jälgimine'!C138)","v":"0"}]
[null,136,{"$f":"'Punktide jälgimine'!C139&COUNTIF('Punktide jälgimine'!$C$4:C139,'Punktide jälgimine'!C139)","v":"0"}]
[null,137,{"$f":"'Punktide jälgimine'!C140&COUNTIF('Punktide jälgimine'!$C$4:C140,'Punktide jälgimine'!C140)","v":"0"}]
[null,138,{"$f":"'Punktide jälgimine'!C141&COUNTIF('Punktide jälgimine'!$C$4:C141,'Punktide jälgimine'!C141)","v":"0"}]
[null,139,{"$f":"'Punktide jälgimine'!C142&COUNTIF('Punktide jälgimine'!$C$4:C142,'Punktide jälgimine'!C142)","v":"0"}]
[null,140,{"$f":"'Punktide jälgimine'!C143&COUNTIF('Punktide jälgimine'!$C$4:C143,'Punktide jälgimine'!C143)","v":"0"}]
[null,141,{"$f":"'Punktide jälgimine'!C144&COUNTIF('Punktide jälgimine'!$C$4:C144,'Punktide jälgimine'!C144)","v":"0"}]
[null,142,{"$f":"'Punktide jälgimine'!C145&COUNTIF('Punktide jälgimine'!$C$4:C145,'Punktide jälgimine'!C145)","v":"0"}]
[null,143,{"$f":"'Punktide jälgimine'!C146&COUNTIF('Punktide jälgimine'!$C$4:C146,'Punktide jälgimine'!C146)","v":"0"}]
[null,144,{"$f":"'Punktide jälgimine'!C147&COUNTIF('Punktide jälgimine'!$C$4:C147,'Punktide jälgimine'!C147)","v":"0"}]
[null,145,{"$f":"'Punktide jälgimine'!C148&COUNTIF('Punktide jälgimine'!$C$4:C148,'Punktide jälgimine'!C148)","v":"0"}]
[null,146,{"$f":"'Punktide jälgimine'!C149&COUNTIF('Punktide jälgimine'!$C$4:C149,'Punktide jälgimine'!C149)","v":"0"}]
[null,147,{"$f":"'Punktide jälgimine'!C150&COUNTIF('Punktide jälgimine'!$C$4:C150,'Punktide jälgimine'!C150)","v":"0"}]
[null,148,{"$f":"'Punktide jälgimine'!C151&COUNTIF('Punktide jälgimine'!$C$4:C151,'Punktide jälgimine'!C151)","v":"0"}]
[null,149,{"$f":"'Punktide jälgimine'!C152&COUNTIF('Punktide jälgimine'!$C$4:C152,'Punktide jälgimine'!C152)","v":"0"}]
[null,150,{"$f":"'Punktide jälgimine'!C153&COUNTIF('Punktide jälgimine'!$C$4:C153,'Punktide jälgimine'!C153)","v":"0"}]
[null,151,{"$f":"'Punktide jälgimine'!C154&COUNTIF('Punktide jälgimine'!$C$4:C154,'Punktide jälgimine'!C154)","v":"0"}]
[null,152,{"$f":"'Punktide jälgimine'!C155&COUNTIF('Punktide jälgimine'!$C$4:C155,'Punktide jälgimine'!C155)","v":"0"}]
[null,153,{"$f":"'Punktide jälgimine'!C156&COUNTIF('Punktide jälgimine'!$C$4:C156,'Punktide jälgimine'!C156)","v":"0"}]
[null,154,{"$f":"'Punktide jälgimine'!C157&COUNTIF('Punktide jälgimine'!$C$4:C157,'Punktide jälgimine'!C157)","v":"0"}]
[null,155,{"$f":"'Punktide jälgimine'!C158&COUNTIF('Punktide jälgimine'!$C$4:C158,'Punktide jälgimine'!C158)","v":"0"}]
[null,156,{"$f":"'Punktide jälgimine'!C159&COUNTIF('Punktide jälgimine'!$C$4:C159,'Punktide jälgimine'!C159)","v":"0"}]
[null,157,{"$f":"'Punktide jälgimine'!C160&COUNTIF('Punktide jälgimine'!$C$4:C160,'Punktide jälgimine'!C160)","v":"0"}]
[null,158,{"$f":"'Punktide jälgimine'!C161&COUNTIF('Punktide jälgimine'!$C$4:C161,'Punktide jälgimine'!C161)","v":"0"}]
[null,159,{"$f":"'Punktide jälgimine'!C162&COUNTIF('Punktide jälgimine'!$C$4:C162,'Punktide jälgimine'!C162)","v":"0"}]
[null,160,{"$f":"'Punktide jälgimine'!C163&COUNTIF('Punktide jälgimine'!$C$4:C163,'Punktide jälgimine'!C163)","v":"0"}]
[null,161,{"$f":"'Punktide jälgimine'!C164&COUNTIF('Punktide jälgimine'!$C$4:C164,'Punktide jälgimine'!C164)","v":"0"}]
[null,162,{"$f":"'Punktide jälgimine'!C165&COUNTIF('Punktide jälgimine'!$C$4:C165,'Punktide jälgimine'!C165)","v":"0"}]
[null,163,{"$f":"'Punktide jälgimine'!C166&COUNTIF('Punktide jälgimine'!$C$4:C166,'Punktide jälgimine'!C166)","v":"0"}]
[null,164,{"$f":"'Punktide jälgimine'!C167&COUNTIF('Punktide jälgimine'!$C$4:C167,'Punktide jälgimine'!C167)","v":"0"}]
[null,165,{"$f":"'Punktide jälgimine'!C168&COUNTIF('Punktide jälgimine'!$C$4:C168,'Punktide jälgimine'!C168)","v":"0"}]
[null,166,{"$f":"'Punktide jälgimine'!C169&COUNTIF('Punktide jälgimine'!$C$4:C169,'Punktide jälgimine'!C169)","v":"0"}]
[null,167,{"$f":"'Punktide jälgimine'!C170&COUNTIF('Punktide jälgimine'!$C$4:C170,'Punktide jälgimine'!C170)","v":"0"}]
[null,168,{"$f":"'Punktide jälgimine'!C171&COUNTIF('Punktide jälgimine'!$C$4:C171,'Punktide jälgimine'!C171)","v":"0"}]
[null,169,{"$f":"'Punktide jälgimine'!C172&COUNTIF('Punktide jälgimine'!$C$4:C172,'Punktide jälgimine'!C172)","v":"0"}]
[null,170,{"$f":"'Punktide jälgimine'!C173&COUNTIF('Punktide jälgimine'!$C$4:C173,'Punktide jälgimine'!C173)","v":"0"}]
[null,171,{"$f":"'Punktide jälgimine'!C174&COUNTIF('Punktide jälgimine'!$C$4:C174,'Punktide jälgimine'!C174)","v":"0"}]
[null,172,{"$f":"'Punktide jälgimine'!C175&COUNTIF('Punktide jälgimine'!$C$4:C175,'Punktide jälgimine'!C175)","v":"0"}]
[null,173,{"$f":"'Punktide jälgimine'!C176&COUNTIF('Punktide jälgimine'!$C$4:C176,'Punktide jälgimine'!C176)","v":"0"}]
[null,174,{"$f":"'Punktide jälgimine'!C177&COUNTIF('Punktide jälgimine'!$C$4:C177,'Punktide jälgimine'!C177)","v":"0"}]
[null,175,{"$f":"'Punktide jälgimine'!C178&COUNTIF('Punktide jälgimine'!$C$4:C178,'Punktide jälgimine'!C178)","v":"0"}]
[null,176,{"$f":"'Punktide jälgimine'!C179&COUNTIF('Punktide jälgimine'!$C$4:C179,'Punktide jälgimine'!C179)","v":"0"}]
[null,177,{"$f":"'Punktide jälgimine'!C180&COUNTIF('Punktide jälgimine'!$C$4:C180,'Punktide jälgimine'!C180)","v":"0"}]
[null,178,{"$f":"'Punktide jälgimine'!C181&COUNTIF('Punktide jälgimine'!$C$4:C181,'Punktide jälgimine'!C181)","v":"0"}]
[null,179,{"$f":"'Punktide jälgimine'!C182&COUNTIF('Punktide jälgimine'!$C$4:C182,'Punktide jälgimine'!C182)","v":"0"}]
[null,180,{"$f":"'Punktide jälgimine'!C183&COUNTIF('Punktide jälgimine'!$C$4:C183,'Punktide jälgimine'!C183)","v":"0"}]
[null,181,{"$f":"'Punktide jälgimine'!C184&COUNTIF('Punktide jälgimine'!$C$4:C184,'Punktide jälgimine'!C184)","v":"0"}]
[null,182,{"$f":"'Punktide jälgimine'!C185&COUNTIF('Punktide jälgimine'!$C$4:C185,'Punktide jälgimine'!C185)","v":"0"}]
[null,183,{"$f":"'Punktide jälgimine'!C186&COUNTIF('Punktide jälgimine'!$C$4:C186,'Punktide jälgimine'!C186)","v":"0"}]
[null,184,{"$f":"'Punktide jälgimine'!C187&COUNTIF('Punktide jälgimine'!$C$4:C187,'Punktide jälgimine'!C187)","v":"0"}]
[null,185,{"$f":"'Punktide jälgimine'!C188&COUNTIF('Punktide jälgimine'!$C$4:C188,'Punktide jälgimine'!C188)","v":"0"}]
[null,186,{"$f":"'Punktide jälgimine'!C189&COUNTIF('Punktide jälgimine'!$C$4:C189,'Punktide jälgimine'!C189)","v":"0"}]
[null,187,{"$f":"'Punktide jälgimine'!C190&COUNTIF('Punktide jälgimine'!$C$4:C190,'Punktide jälgimine'!C190)","v":"0"}]
[null,188,{"$f":"'Punktide jälgimine'!C191&COUNTIF('Punktide jälgimine'!$C$4:C191,'Punktide jälgimine'!C191)","v":"0"}]
[null,189,{"$f":"'Punktide jälgimine'!C192&COUNTIF('Punktide jälgimine'!$C$4:C192,'Punktide jälgimine'!C192)","v":"0"}]
[null,190,{"$f":"'Punktide jälgimine'!C193&COUNTIF('Punktide jälgimine'!$C$4:C193,'Punktide jälgimine'!C193)","v":"0"}]
[null,191,{"$f":"'Punktide jälgimine'!C194&COUNTIF('Punktide jälgimine'!$C$4:C194,'Punktide jälgimine'!C194)","v":"0"}]
[null,192,{"$f":"'Punktide jälgimine'!C195&COUNTIF('Punktide jälgimine'!$C$4:C195,'Punktide jälgimine'!C195)","v":"0"}]
[null,193,{"$f":"'Punktide jälgimine'!C196&COUNTIF('Punktide jälgimine'!$C$4:C196,'Punktide jälgimine'!C196)","v":"0"}]
[null,194,{"$f":"'Punktide jälgimine'!C197&COUNTIF('Punktide jälgimine'!$C$4:C197,'Punktide jälgimine'!C197)","v":"0"}]
[null,195,{"$f":"'Punktide jälgimine'!C198&COUNTIF('Punktide jälgimine'!$C$4:C198,'Punktide jälgimine'!C198)","v":"0"}]
[null,196,{"$f":"'Punktide jälgimine'!C199&COUNTIF('Punktide jälgimine'!$C$4:C199,'Punktide jälgimine'!C199)","v":"0"}]
[null,197,{"$f":"'Punktide jälgimine'!C200&COUNTIF('Punktide jälgimine'!$C$4:C200,'Punktide jälgimine'!C200)","v":"0"}]
[null,198,{"$f":"'Punktide jälgimine'!C201&COUNTIF('Punktide jälgimine'!$C$4:C201,'Punktide jälgimine'!C201)","v":"0"}]
[null,199,{"$f":"'Punktide jälgimine'!C202&COUNTIF('Punktide jälgimine'!$C$4:C202,'Punktide jälgimine'!C202)","v":"0"}]
[null,200,{"$f":"'Punktide jälgimine'!C203&COUNTIF('Punktide jälgimine'!$C$4:C203,'Punktide jälgimine'!C203)","v":"0"}]
[null,201,{"$f":"'Punktide jälgimine'!C204&COUNTIF('Punktide jälgimine'!$C$4:C204,'Punktide jälgimine'!C204)","v":"0"}]
[null,202,{"$f":"'Punktide jälgimine'!C205&COUNTIF('Punktide jälgimine'!$C$4:C205,'Punktide jälgimine'!C205)","v":"0"}]
[null,203,{"$f":"'Punktide jälgimine'!C206&COUNTIF('Punktide jälgimine'!$C$4:C206,'Punktide jälgimine'!C206)","v":"0"}]
[null,204,{"$f":"'Punktide jälgimine'!C207&COUNTIF('Punktide jälgimine'!$C$4:C207,'Punktide jälgimine'!C207)","v":"0"}]
[null,205,{"$f":"'Punktide jälgimine'!C208&COUNTIF('Punktide jälgimine'!$C$4:C208,'Punktide jälgimine'!C208)","v":"0"}]
[null,206,{"$f":"'Punktide jälgimine'!C209&COUNTIF('Punktide jälgimine'!$C$4:C209,'Punktide jälgimine'!C209)","v":"0"}]
[null,207,{"$f":"'Punktide jälgimine'!C210&COUNTIF('Punktide jälgimine'!$C$4:C210,'Punktide jälgimine'!C210)","v":"0"}]
[null,208,{"$f":"'Punktide jälgimine'!C211&COUNTIF('Punktide jälgimine'!$C$4:C211,'Punktide jälgimine'!C211)","v":"0"}]
[null,209,{"$f":"'Punktide jälgimine'!C212&COUNTIF('Punktide jälgimine'!$C$4:C212,'Punktide jälgimine'!C212)","v":"0"}]
[null,210,{"$f":"'Punktide jälgimine'!C213&COUNTIF('Punktide jälgimine'!$C$4:C213,'Punktide jälgimine'!C213)","v":"0"}]
[null,211,{"$f":"'Punktide jälgimine'!C214&COUNTIF('Punktide jälgimine'!$C$4:C214,'Punktide jälgimine'!C214)","v":"0"}]
[null,212,{"$f":"'Punktide jälgimine'!C215&COUNTIF('Punktide jälgimine'!$C$4:C215,'Punktide jälgimine'!C215)","v":"0"}]
[null,213,{"$f":"'Punktide jälgimine'!C216&COUNTIF('Punktide jälgimine'!$C$4:C216,'Punktide jälgimine'!C216)","v":"0"}]
[null,214,{"$f":"'Punktide jälgimine'!C217&COUNTIF('Punktide jälgimine'!$C$4:C217,'Punktide jälgimine'!C217)","v":"0"}]
[null,215,{"$f":"'Punktide jälgimine'!C218&COUNTIF('Punktide jälgimine'!$C$4:C218,'Punktide jälgimine'!C218)","v":"0"}]
[null,216,{"$f":"'Punktide jälgimine'!C219&COUNTIF('Punktide jälgimine'!$C$4:C219,'Punktide jälgimine'!C219)","v":"0"}]
[null,217,{"$f":"'Punktide jälgimine'!C220&COUNTIF('Punktide jälgimine'!$C$4:C220,'Punktide jälgimine'!C220)","v":"0"}]
[null,218,{"$f":"'Punktide jälgimine'!C221&COUNTIF('Punktide jälgimine'!$C$4:C221,'Punktide jälgimine'!C221)","v":"0"}]
[null,219,{"$f":"'Punktide jälgimine'!C222&COUNTIF('Punktide jälgimine'!$C$4:C222,'Punktide jälgimine'!C222)","v":"0"}]
[null,220,{"$f":"'Punktide jälgimine'!C223&COUNTIF('Punktide jälgimine'!$C$4:C223,'Punktide jälgimine'!C223)","v":"0"}]
[null,221,{"$f":"'Punktide jälgimine'!C224&COUNTIF('Punktide jälgimine'!$C$4:C224,'Punktide jälgimine'!C224)","v":"0"}]
[null,222,{"$f":"'Punktide jälgimine'!C225&COUNTIF('Punktide jälgimine'!$C$4:C225,'Punktide jälgimine'!C225)","v":"0"}]
[null,223,{"$f":"'Punktide jälgimine'!C226&COUNTIF('Punktide jälgimine'!$C$4:C226,'Punktide jälgimine'!C226)","v":"0"}]
[null,224,{"$f":"'Punktide jälgimine'!C227&COUNTIF('Punktide jälgimine'!$C$4:C227,'Punktide jälgimine'!C227)","v":"0"}]
[null,225,{"$f":"'Punktide jälgimine'!C228&COUNTIF('Punktide jälgimine'!$C$4:C228,'Punktide jälgimine'!C228)","v":"0"}]
[null,226,{"$f":"'Punktide jälgimine'!C229&COUNTIF('Punktide jälgimine'!$C$4:C229,'Punktide jälgimine'!C229)","v":"0"}]
[null,227,{"$f":"'Punktide jälgimine'!C230&COUNTIF('Punktide jälgimine'!$C$4:C230,'Punktide jälgimine'!C230)","v":"0"}]
[null,228,{"$f":"'Punktide jälgimine'!C231&COUNTIF('Punktide jälgimine'!$C$4:C231,'Punktide jälgimine'!C231)","v":"0"}]
[null,229,{"$f":"'Punktide jälgimine'!C232&COUNTIF('Punktide jälgimine'!$C$4:C232,'Punktide jälgimine'!C232)","v":"0"}]
[null,230,{"$f":"'Punktide jälgimine'!C233&COUNTIF('Punktide jälgimine'!$C$4:C233,'Punktide jälgimine'!C233)","v":"0"}]
[null,231,{"$f":"'Punktide jälgimine'!C234&COUNTIF('Punktide jälgimine'!$C$4:C234,'Punktide jälgimine'!C234)","v":"0"}]
[null,232,{"$f":"'Punktide jälgimine'!C235&COUNTIF('Punktide jälgimine'!$C$4:C235,'Punktide jälgimine'!C235)","v":"0"}]
[null,233,{"$f":"'Punktide jälgimine'!C236&COUNTIF('Punktide jälgimine'!$C$4:C236,'Punktide jälgimine'!C236)","v":"0"}]
[null,234,{"$f":"'Punktide jälgimine'!C237&COUNTIF('Punktide jälgimine'!$C$4:C237,'Punktide jälgimine'!C237)","v":"0"}]
[null,235,{"$f":"'Punktide jälgimine'!C238&COUNTIF('Punktide jälgimine'!$C$4:C238,'Punktide jälgimine'!C238)","v":"0"}]
[null,236,{"$f":"'Punktide jälgimine'!C239&COUNTIF('Punktide jälgimine'!$C$4:C239,'Punktide jälgimine'!C239)","v":"0"}]
[null,237,{"$f":"'Punktide jälgimine'!C240&COUNTIF('Punktide jälgimine'!$C$4:C240,'Punktide jälgimine'!C240)","v":"0"}]
[null,238,{"$f":"'Punktide jälgimine'!C241&COUNTIF('Punktide jälgimine'!$C$4:C241,'Punktide jälgimine'!C241)","v":"0"}]
[null,239,{"$f":"'Punktide jälgimine'!C242&COUNTIF('Punktide jälgimine'!$C$4:C242,'Punktide jälgimine'!C242)","v":"0"}]
[null,240,{"$f":"'Punktide jälgimine'!C243&COUNTIF('Punktide jälgimine'!$C$4:C243,'Punktide jälgimine'!C243)","v":"0"}]
[null,241,{"$f":"'Punktide jälgimine'!C244&COUNTIF('Punktide jälgimine'!$C$4:C244,'Punktide jälgimine'!C244)","v":"0"}]
[null,242,{"$f":"'Punktide jälgimine'!C245&COUNTIF('Punktide jälgimine'!$C$4:C245,'Punktide jälgimine'!C245)","v":"0"}]
[null,243,{"$f":"'Punktide jälgimine'!C246&COUNTIF('Punktide jälgimine'!$C$4:C246,'Punktide jälgimine'!C246)","v":"0"}]
[null,244,{"$f":"'Punktide jälgimine'!C247&COUNTIF('Punktide jälgimine'!$C$4:C247,'Punktide jälgimine'!C247)","v":"0"}]
[null,245,{"$f":"'Punktide jälgimine'!C248&COUNTIF('Punktide jälgimine'!$C$4:C248,'Punktide jälgimine'!C248)","v":"0"}]
[null,246,{"$f":"'Punktide jälgimine'!C249&COUNTIF('Punktide jälgimine'!$C$4:C249,'Punktide jälgimine'!C249)","v":"0"}]
[null,247,{"$f":"'Punktide jälgimine'!C250&COUNTIF('Punktide jälgimine'!$C$4:C250,'Punktide jälgimine'!C250)","v":"0"}]
[null,248,{"$f":"'Punktide jälgimine'!C251&COUNTIF('Punktide jälgimine'!$C$4:C251,'Punktide jälgimine'!C251)","v":"0"}]
[null,249,{"$f":"'Punktide jälgimine'!C252&COUNTIF('Punktide jälgimine'!$C$4:C252,'Punktide jälgimine'!C252)","v":"0"}]
[null,250,{"$f":"'Punktide jälgimine'!C253&COUNTIF('Punktide jälgimine'!$C$4:C253,'Punktide jälgimine'!C253)","v":"0"}]
[null,251,{"$f":"'Punktide jälgimine'!C254&COUNTIF('Punktide jälgimine'!$C$4:C254,'Punktide jälgimine'!C254)","v":"0"}]
[null,252,{"$f":"'Punktide jälgimine'!C255&COUNTIF('Punktide jälgimine'!$C$4:C255,'Punktide jälgimine'!C255)","v":"0"}]
[null,253,{"$f":"'Punktide jälgimine'!C256&COUNTIF('Punktide jälgimine'!$C$4:C256,'Punktide jälgimine'!C256)","v":"0"}]
[null,254,{"$f":"'Punktide jälgimine'!C257&COUNTIF('Punktide jälgimine'!$C$4:C257,'Punktide jälgimine'!C257)","v":"0"}]
[null,255,{"$f":"'Punktide jälgimine'!C258&COUNTIF('Punktide jälgimine'!$C$4:C258,'Punktide jälgimine'!C258)","v":"0"}]
[null,256,{"$f":"'Punktide jälgimine'!C259&COUNTIF('Punktide jälgimine'!$C$4:C259,'Punktide jälgimine'!C259)","v":"0"}]
[null,257,{"$f":"'Punktide jälgimine'!C260&COUNTIF('Punktide jälgimine'!$C$4:C260,'Punktide jälgimine'!C260)","v":"0"}]
[null,258,{"$f":"'Punktide jälgimine'!C261&COUNTIF('Punktide jälgimine'!$C$4:C261,'Punktide jälgimine'!C261)","v":"0"}]
[null,259,{"$f":"'Punktide jälgimine'!C262&COUNTIF('Punktide jälgimine'!$C$4:C262,'Punktide jälgimine'!C262)","v":"0"}]
[null,260,{"$f":"'Punktide jälgimine'!C263&COUNTIF('Punktide jälgimine'!$C$4:C263,'Punktide jälgimine'!C263)","v":"0"}]
[null,261,{"$f":"'Punktide jälgimine'!C264&COUNTIF('Punktide jälgimine'!$C$4:C264,'Punktide jälgimine'!C264)","v":"0"}]
[null,262,{"$f":"'Punktide jälgimine'!C265&COUNTIF('Punktide jälgimine'!$C$4:C265,'Punktide jälgimine'!C265)","v":"0"}]
[null,263,{"$f":"'Punktide jälgimine'!C266&COUNTIF('Punktide jälgimine'!$C$4:C266,'Punktide jälgimine'!C266)","v":"0"}]
[null,264,{"$f":"'Punktide jälgimine'!C267&COUNTIF('Punktide jälgimine'!$C$4:C267,'Punktide jälgimine'!C267)","v":"0"}]
[null,265,{"$f":"'Punktide jälgimine'!C268&COUNTIF('Punktide jälgimine'!$C$4:C268,'Punktide jälgimine'!C268)","v":"0"}]
[null,266,{"$f":"'Punktide jälgimine'!C269&COUNTIF('Punktide jälgimine'!$C$4:C269,'Punktide jälgimine'!C269)","v":"0"}]
[null,267,{"$f":"'Punktide jälgimine'!C270&COUNTIF('Punktide jälgimine'!$C$4:C270,'Punktide jälgimine'!C270)","v":"0"}]
[null,268,{"$f":"'Punktide jälgimine'!C271&COUNTIF('Punktide jälgimine'!$C$4:C271,'Punktide jälgimine'!C271)","v":"0"}]
[null,269,{"$f":"'Punktide jälgimine'!C272&COUNTIF('Punktide jälgimine'!$C$4:C272,'Punktide jälgimine'!C272)","v":"0"}]
[null,270,{"$f":"'Punktide jälgimine'!C273&COUNTIF('Punktide jälgimine'!$C$4:C273,'Punktide jälgimine'!C273)","v":"0"}]
[null,271,{"$f":"'Punktide jälgimine'!C274&COUNTIF('Punktide jälgimine'!$C$4:C274,'Punktide jälgimine'!C274)","v":"0"}]
[null,272,{"$f":"'Punktide jälgimine'!C275&COUNTIF('Punktide jälgimine'!$C$4:C275,'Punktide jälgimine'!C275)","v":"0"}]
[null,273,{"$f":"'Punktide jälgimine'!C276&COUNTIF('Punktide jälgimine'!$C$4:C276,'Punktide jälgimine'!C276)","v":"0"}]
[null,274,{"$f":"'Punktide jälgimine'!C277&COUNTIF('Punktide jälgimine'!$C$4:C277,'Punktide jälgimine'!C277)","v":"0"}]
[null,275,{"$f":"'Punktide jälgimine'!C278&COUNTIF('Punktide jälgimine'!$C$4:C278,'Punktide jälgimine'!C278)","v":"0"}]
[null,276,{"$f":"'Punktide jälgimine'!C279&COUNTIF('Punktide jälgimine'!$C$4:C279,'Punktide jälgimine'!C279)","v":"0"}]
[null,277,{"$f":"'Punktide jälgimine'!C280&COUNTIF('Punktide jälgimine'!$C$4:C280,'Punktide jälgimine'!C280)","v":"0"}]
[null,278,{"$f":"'Punktide jälgimine'!C281&COUNTIF('Punktide jälgimine'!$C$4:C281,'Punktide jälgimine'!C281)","v":"0"}]
[null,279,{"$f":"'Punktide jälgimine'!C282&COUNTIF('Punktide jälgimine'!$C$4:C282,'Punktide jälgimine'!C282)","v":"0"}]
[null,280,{"$f":"'Punktide jälgimine'!C283&COUNTIF('Punktide jälgimine'!$C$4:C283,'Punktide jälgimine'!C283)","v":"0"}]
[null,281,{"$f":"'Punktide jälgimine'!C284&COUNTIF('Punktide jälgimine'!$C$4:C284,'Punktide jälgimine'!C284)","v":"0"}]
[null,282,{"$f":"'Punktide jälgimine'!C285&COUNTIF('Punktide jälgimine'!$C$4:C285,'Punktide jälgimine'!C285)","v":"0"}]
[null,283,{"$f":"'Punktide jälgimine'!C286&COUNTIF('Punktide jälgimine'!$C$4:C286,'Punktide jälgimine'!C286)","v":"0"}]
[null,284,{"$f":"'Punktide jälgimine'!C287&COUNTIF('Punktide jälgimine'!$C$4:C287,'Punktide jälgimine'!C287)","v":"0"}]
[null,285,{"$f":"'Punktide jälgimine'!C288&COUNTIF('Punktide jälgimine'!$C$4:C288,'Punktide jälgimine'!C288)","v":"0"}]
[null,286,{"$f":"'Punktide jälgimine'!C289&COUNTIF('Punktide jälgimine'!$C$4:C289,'Punktide jälgimine'!C289)","v":"0"}]
[null,287,{"$f":"'Punktide jälgimine'!C290&COUNTIF('Punktide jälgimine'!$C$4:C290,'Punktide jälgimine'!C290)","v":"0"}]
[null,288,{"$f":"'Punktide jälgimine'!C291&COUNTIF('Punktide jälgimine'!$C$4:C291,'Punktide jälgimine'!C291)","v":"0"}]
[null,289,{"$f":"'Punktide jälgimine'!C292&COUNTIF('Punktide jälgimine'!$C$4:C292,'Punktide jälgimine'!C292)","v":"0"}]
[null,290,{"$f":"'Punktide jälgimine'!C293&COUNTIF('Punktide jälgimine'!$C$4:C293,'Punktide jälgimine'!C293)","v":"0"}]
[null,291,{"$f":"'Punktide jälgimine'!C294&COUNTIF('Punktide jälgimine'!$C$4:C294,'Punktide jälgimine'!C294)","v":"0"}]
[null,292,{"$f":"'Punktide jälgimine'!C295&COUNTIF('Punktide jälgimine'!$C$4:C295,'Punktide jälgimine'!C295)","v":"0"}]
[null,293,{"$f":"'Punktide jälgimine'!C296&COUNTIF('Punktide jälgimine'!$C$4:C296,'Punktide jälgimine'!C296)","v":"0"}]
[null,294,{"$f":"'Punktide jälgimine'!C297&COUNTIF('Punktide jälgimine'!$C$4:C297,'Punktide jälgimine'!C297)","v":"0"}]
[null,295,{"$f":"'Punktide jälgimine'!C298&COUNTIF('Punktide jälgimine'!$C$4:C298,'Punktide jälgimine'!C298)","v":"0"}]
[null,296,{"$f":"'Punktide jälgimine'!C299&COUNTIF('Punktide jälgimine'!$C$4:C299,'Punktide jälgimine'!C299)","v":"0"}]
[null,297,{"$f":"'Punktide jälgimine'!C300&COUNTIF('Punktide jälgimine'!$C$4:C300,'Punktide jälgimine'!C300)","v":"0"}]
[null,298,{"$f":"'Punktide jälgimine'!C301&COUNTIF('Punktide jälgimine'!$C$4:C301,'Punktide jälgimine'!C301)","v":"0"}]
[null,299,{"$f":"'Punktide jälgimine'!C302&COUNTIF('Punktide jälgimine'!$C$4:C302,'Punktide jälgimine'!C302)","v":"0"}]
[null,300,{"$f":"'Punktide jälgimine'!C303&COUNTIF('Punktide jälgimine'!$C$4:C303,'Punktide jälgimine'!C303)","v":"0"}]
[null,301,{"$f":"'Punktide jälgimine'!C304&COUNTIF('Punktide jälgimine'!$C$4:C304,'Punktide jälgimine'!C304)","v":"0"}]
[null,302,{"$f":"'Punktide jälgimine'!C305&COUNTIF('Punktide jälgimine'!$C$4:C305,'Punktide jälgimine'!C305)","v":"0"}]
[null,303,{"$f":"'Punktide jälgimine'!C306&COUNTIF('Punktide jälgimine'!$C$4:C306,'Punktide jälgimine'!C306)","v":"0"}]
[null,304,{"$f":"'Punktide jälgimine'!C307&COUNTIF('Punktide jälgimine'!$C$4:C307,'Punktide jälgimine'!C307)","v":"0"}]
[null,305,{"$f":"'Punktide jälgimine'!C308&COUNTIF('Punktide jälgimine'!$C$4:C308,'Punktide jälgimine'!C308)","v":"0"}]
[null,306,{"$f":"'Punktide jälgimine'!C309&COUNTIF('Punktide jälgimine'!$C$4:C309,'Punktide jälgimine'!C309)","v":"0"}]
[null,307,{"$f":"'Punktide jälgimine'!C310&COUNTIF('Punktide jälgimine'!$C$4:C310,'Punktide jälgimine'!C310)","v":"0"}]
[null,308,{"$f":"'Punktide jälgimine'!C311&COUNTIF('Punktide jälgimine'!$C$4:C311,'Punktide jälgimine'!C311)","v":"0"}]
[null,309,{"$f":"'Punktide jälgimine'!C312&COUNTIF('Punktide jälgimine'!$C$4:C312,'Punktide jälgimine'!C312)","v":"0"}]
[null,310,{"$f":"'Punktide jälgimine'!C313&COUNTIF('Punktide jälgimine'!$C$4:C313,'Punktide jälgimine'!C313)","v":"0"}]
[null,311,{"$f":"'Punktide jälgimine'!C314&COUNTIF('Punktide jälgimine'!$C$4:C314,'Punktide jälgimine'!C314)","v":"0"}]
[null,312,{"$f":"'Punktide jälgimine'!C315&COUNTIF('Punktide jälgimine'!$C$4:C315,'Punktide jälgimine'!C315)","v":"0"}]
[null,313,{"$f":"'Punktide jälgimine'!C316&COUNTIF('Punktide jälgimine'!$C$4:C316,'Punktide jälgimine'!C316)","v":"0"}]
[null,314,{"$f":"'Punktide jälgimine'!C317&COUNTIF('Punktide jälgimine'!$C$4:C317,'Punktide jälgimine'!C317)","v":"0"}]
[null,315,{"$f":"'Punktide jälgimine'!C318&COUNTIF('Punktide jälgimine'!$C$4:C318,'Punktide jälgimine'!C318)","v":"0"}]
[null,316,{"$f":"'Punktide jälgimine'!C319&COUNTIF('Punktide jälgimine'!$C$4:C319,'Punktide jälgimine'!C319)","v":"0"}]
[null,317,{"$f":"'Punktide jälgimine'!C320&COUNTIF('Punktide jälgimine'!$C$4:C320,'Punktide jälgimine'!C320)","v":"0"}]
[null,318,{"$f":"'Punktide jälgimine'!C321&COUNTIF('Punktide jälgimine'!$C$4:C321,'Punktide jälgimine'!C321)","v":"0"}]
[null,319,{"$f":"'Punktide jälgimine'!C322&COUNTIF('Punktide jälgimine'!$C$4:C322,'Punktide jälgimine'!C322)","v":"0"}]
[null,320,{"$f":"'Punktide jälgimine'!C323&COUNTIF('Punktide jälgimine'!$C$4:C323,'Punktide jälgimine'!C323)","v":"0"}]
[null,321,{"$f":"'Punktide jälgimine'!C324&COUNTIF('Punktide jälgimine'!$C$4:C324,'Punktide jälgimine'!C324)","v":"0"}]
[null,322,{"$f":"'Punktide jälgimine'!C325&COUNTIF('Punktide jälgimine'!$C$4:C325,'Punktide jälgimine'!C325)","v":"0"}]
[null,323,{"$f":"'Punktide jälgimine'!C326&COUNTIF('Punktide jälgimine'!$C$4:C326,'Punktide jälgimine'!C326)","v":"0"}]
[null,324,{"$f":"'Punktide jälgimine'!C327&COUNTIF('Punktide jälgimine'!$C$4:C327,'Punktide jälgimine'!C327)","v":"0"}]
[null,325,{"$f":"'Punktide jälgimine'!C328&COUNTIF('Punktide jälgimine'!$C$4:C328,'Punktide jälgimine'!C328)","v":"0"}]
[null,326,{"$f":"'Punktide jälgimine'!C329&COUNTIF('Punktide jälgimine'!$C$4:C329,'Punktide jälgimine'!C329)","v":"0"}]
[null,327,{"$f":"'Punktide jälgimine'!C330&COUNTIF('Punktide jälgimine'!$C$4:C330,'Punktide jälgimine'!C330)","v":"0"}]
[null,328,{"$f":"'Punktide jälgimine'!C331&COUNTIF('Punktide jälgimine'!$C$4:C331,'Punktide jälgimine'!C331)","v":"0"}]
[null,329,{"$f":"'Punktide jälgimine'!C332&COUNTIF('Punktide jälgimine'!$C$4:C332,'Punktide jälgimine'!C332)","v":"0"}]
[null,330,{"$f":"'Punktide jälgimine'!C333&COUNTIF('Punktide jälgimine'!$C$4:C333,'Punktide jälgimine'!C333)","v":"0"}]
[null,331,{"$f":"'Punktide jälgimine'!C334&COUNTIF('Punktide jälgimine'!$C$4:C334,'Punktide jälgimine'!C334)","v":"0"}]
[null,332,{"$f":"'Punktide jälgimine'!C335&COUNTIF('Punktide jälgimine'!$C$4:C335,'Punktide jälgimine'!C335)","v":"0"}]
[null,333,{"$f":"'Punktide jälgimine'!C336&COUNTIF('Punktide jälgimine'!$C$4:C336,'Punktide jälgimine'!C336)","v":"0"}]
[null,334,{"$f":"'Punktide jälgimine'!C337&COUNTIF('Punktide jälgimine'!$C$4:C337,'Punktide jälgimine'!C337)","v":"0"}]
[null,335,{"$f":"'Punktide jälgimine'!C338&COUNTIF('Punktide jälgimine'!$C$4:C338,'Punktide jälgimine'!C338)","v":"0"}]
[null,336,{"$f":"'Punktide jälgimine'!C339&COUNTIF('Punktide jälgimine'!$C$4:C339,'Punktide jälgimine'!C339)","v":"0"}]
[null,337,{"$f":"'Punktide jälgimine'!C340&COUNTIF('Punktide jälgimine'!$C$4:C340,'Punktide jälgimine'!C340)","v":"0"}]
[null,338,{"$f":"'Punktide jälgimine'!C341&COUNTIF('Punktide jälgimine'!$C$4:C341,'Punktide jälgimine'!C341)","v":"0"}]
[null,339,{"$f":"'Punktide jälgimine'!C342&COUNTIF('Punktide jälgimine'!$C$4:C342,'Punktide jälgimine'!C342)","v":"0"}]
[null,340,{"$f":"'Punktide jälgimine'!C343&COUNTIF('Punktide jälgimine'!$C$4:C343,'Punktide jälgimine'!C343)","v":"0"}]
[null,341,{"$f":"'Punktide jälgimine'!C344&COUNTIF('Punktide jälgimine'!$C$4:C344,'Punktide jälgimine'!C344)","v":"0"}]
[null,342,{"$f":"'Punktide jälgimine'!C345&COUNTIF('Punktide jälgimine'!$C$4:C345,'Punktide jälgimine'!C345)","v":"0"}]
[null,343,{"$f":"'Punktide jälgimine'!C346&COUNTIF('Punktide jälgimine'!$C$4:C346,'Punktide jälgimine'!C346)","v":"0"}]
[null,344,{"$f":"'Punktide jälgimine'!C347&COUNTIF('Punktide jälgimine'!$C$4:C347,'Punktide jälgimine'!C347)","v":"0"}]
[null,345,{"$f":"'Punktide jälgimine'!C348&COUNTIF('Punktide jälgimine'!$C$4:C348,'Punktide jälgimine'!C348)","v":"0"}]
[null,346,{"$f":"'Punktide jälgimine'!C349&COUNTIF('Punktide jälgimine'!$C$4:C349,'Punktide jälgimine'!C349)","v":"0"}]
[null,347,{"$f":"'Punktide jälgimine'!C350&COUNTIF('Punktide jälgimine'!$C$4:C350,'Punktide jälgimine'!C350)","v":"0"}]
[null,348,{"$f":"'Punktide jälgimine'!C351&COUNTIF('Punktide jälgimine'!$C$4:C351,'Punktide jälgimine'!C351)","v":"0"}]
[null,349,{"$f":"'Punktide jälgimine'!C352&COUNTIF('Punktide jälgimine'!$C$4:C352,'Punktide jälgimine'!C352)","v":"0"}]
[null,350,{"$f":"'Punktide jälgimine'!C353&COUNTIF('Punktide jälgimine'!$C$4:C353,'Punktide jälgimine'!C353)","v":"0"}]
[null,351,{"$f":"'Punktide jälgimine'!C354&COUNTIF('Punktide jälgimine'!$C$4:C354,'Punktide jälgimine'!C354)","v":"0"}]
[null,352,{"$f":"'Punktide jälgimine'!C355&COUNTIF('Punktide jälgimine'!$C$4:C355,'Punktide jälgimine'!C355)","v":"0"}]
[null,353,{"$f":"'Punktide jälgimine'!C356&COUNTIF('Punktide jälgimine'!$C$4:C356,'Punktide jälgimine'!C356)","v":"0"}]
[null,354,{"$f":"'Punktide jälgimine'!C357&COUNTIF('Punktide jälgimine'!$C$4:C357,'Punktide jälgimine'!C357)","v":"0"}]
[null,355,{"$f":"'Punktide jälgimine'!C358&COUNTIF('Punktide jälgimine'!$C$4:C358,'Punktide jälgimine'!C358)","v":"0"}]
[null,356,{"$f":"'Punktide jälgimine'!C359&COUNTIF('Punktide jälgimine'!$C$4:C359,'Punktide jälgimine'!C359)","v":"0"}]
[null,357,{"$f":"'Punktide jälgimine'!C360&COUNTIF('Punktide jälgimine'!$C$4:C360,'Punktide jälgimine'!C360)","v":"0"}]
[null,358,{"$f":"'Punktide jälgimine'!C361&COUNTIF('Punktide jälgimine'!$C$4:C361,'Punktide jälgimine'!C361)","v":"0"}]
[null,359,{"$f":"'Punktide jälgimine'!C362&COUNTIF('Punktide jälgimine'!$C$4:C362,'Punktide jälgimine'!C362)","v":"0"}]
[null,360,{"$f":"'Punktide jälgimine'!C363&COUNTIF('Punktide jälgimine'!$C$4:C363,'Punktide jälgimine'!C363)","v":"0"}]
[null,361,{"$f":"'Punktide jälgimine'!C364&COUNTIF('Punktide jälgimine'!$C$4:C364,'Punktide jälgimine'!C364)","v":"0"}]
[null,362,{"$f":"'Punktide jälgimine'!C365&COUNTIF('Punktide jälgimine'!$C$4:C365,'Punktide jälgimine'!C365)","v":"0"}]
[null,363,{"$f":"'Punktide jälgimine'!C366&COUNTIF('Punktide jälgimine'!$C$4:C366,'Punktide jälgimine'!C366)","v":"0"}]
[null,364,{"$f":"'Punktide jälgimine'!C367&COUNTIF('Punktide jälgimine'!$C$4:C367,'Punktide jälgimine'!C367)","v":"0"}]
[null,365,{"$f":"'Punktide jälgimine'!C368&COUNTIF('Punktide jälgimine'!$C$4:C368,'Punktide jälgimine'!C368)","v":"0"}]
[null,366,{"$f":"'Punktide jälgimine'!C369&COUNTIF('Punktide jälgimine'!$C$4:C369,'Punktide jälgimine'!C369)","v":"0"}]
[null,367,{"$f":"'Punktide jälgimine'!C370&COUNTIF('Punktide jälgimine'!$C$4:C370,'Punktide jälgimine'!C370)","v":"0"}]
[null,368,{"$f":"'Punktide jälgimine'!C371&COUNTIF('Punktide jälgimine'!$C$4:C371,'Punktide jälgimine'!C371)","v":"0"}]
[null,369,{"$f":"'Punktide jälgimine'!C372&COUNTIF('Punktide jälgimine'!$C$4:C372,'Punktide jälgimine'!C372)","v":"0"}]
[null,370,{"$f":"'Punktide jälgimine'!C373&COUNTIF('Punktide jälgimine'!$C$4:C373,'Punktide jälgimine'!C373)","v":"0"}]
[null,371,{"$f":"'Punktide jälgimine'!C374&COUNTIF('Punktide jälgimine'!$C$4:C374,'Punktide jälgimine'!C374)","v":"0"}]
[null,372,{"$f":"'Punktide jälgimine'!C375&COUNTIF('Punktide jälgimine'!$C$4:C375,'Punktide jälgimine'!C375)","v":"0"}]
[null,373,{"$f":"'Punktide jälgimine'!C376&COUNTIF('Punktide jälgimine'!$C$4:C376,'Punktide jälgimine'!C376)","v":"0"}]
[null,374,{"$f":"'Punktide jälgimine'!C377&COUNTIF('Punktide jälgimine'!$C$4:C377,'Punktide jälgimine'!C377)","v":"0"}]
[null,375,{"$f":"'Punktide jälgimine'!C378&COUNTIF('Punktide jälgimine'!$C$4:C378,'Punktide jälgimine'!C378)","v":"0"}]
[null,376,{"$f":"'Punktide jälgimine'!C379&COUNTIF('Punktide jälgimine'!$C$4:C379,'Punktide jälgimine'!C379)","v":"0"}]
[null,377,{"$f":"'Punktide jälgimine'!C380&COUNTIF('Punktide jälgimine'!$C$4:C380,'Punktide jälgimine'!C380)","v":"0"}]
[null,378,{"$f":"'Punktide jälgimine'!C381&COUNTIF('Punktide jälgimine'!$C$4:C381,'Punktide jälgimine'!C381)","v":"0"}]
[null,379,{"$f":"'Punktide jälgimine'!C382&COUNTIF('Punktide jälgimine'!$C$4:C382,'Punktide jälgimine'!C382)","v":"0"}]
[null,380,{"$f":"'Punktide jälgimine'!C383&COUNTIF('Punktide jälgimine'!$C$4:C383,'Punktide jälgimine'!C383)","v":"0"}]
[null,381,{"$f":"'Punktide jälgimine'!C384&COUNTIF('Punktide jälgimine'!$C$4:C384,'Punktide jälgimine'!C384)","v":"0"}]
[null,382,{"$f":"'Punktide jälgimine'!C385&COUNTIF('Punktide jälgimine'!$C$4:C385,'Punktide jälgimine'!C385)","v":"0"}]
[null,383,{"$f":"'Punktide jälgimine'!C386&COUNTIF('Punktide jälgimine'!$C$4:C386,'Punktide jälgimine'!C386)","v":"0"}]
[null,384,{"$f":"'Punktide jälgimine'!C387&COUNTIF('Punktide jälgimine'!$C$4:C387,'Punktide jälgimine'!C387)","v":"0"}]
[null,385,{"$f":"'Punktide jälgimine'!C388&COUNTIF('Punktide jälgimine'!$C$4:C388,'Punktide jälgimine'!C388)","v":"0"}]
[null,386,{"$f":"'Punktide jälgimine'!C389&COUNTIF('Punktide jälgimine'!$C$4:C389,'Punktide jälgimine'!C389)","v":"0"}]
[null,387,{"$f":"'Punktide jälgimine'!C390&COUNTIF('Punktide jälgimine'!$C$4:C390,'Punktide jälgimine'!C390)","v":"0"}]
[null,388,{"$f":"'Punktide jälgimine'!C391&COUNTIF('Punktide jälgimine'!$C$4:C391,'Punktide jälgimine'!C391)","v":"0"}]
[null,389,{"$f":"'Punktide jälgimine'!C392&COUNTIF('Punktide jälgimine'!$C$4:C392,'Punktide jälgimine'!C392)","v":"0"}]
[null,390,{"$f":"'Punktide jälgimine'!C393&COUNTIF('Punktide jälgimine'!$C$4:C393,'Punktide jälgimine'!C393)","v":"0"}]
[null,391,{"$f":"'Punktide jälgimine'!C394&COUNTIF('Punktide jälgimine'!$C$4:C394,'Punktide jälgimine'!C394)","v":"0"}]
[null,392,{"$f":"'Punktide jälgimine'!C395&COUNTIF('Punktide jälgimine'!$C$4:C395,'Punktide jälgimine'!C395)","v":"0"}]
[null,393,{"$f":"'Punktide jälgimine'!C396&COUNTIF('Punktide jälgimine'!$C$4:C396,'Punktide jälgimine'!C396)","v":"0"}]
[null,394,{"$f":"'Punktide jälgimine'!C397&COUNTIF('Punktide jälgimine'!$C$4:C397,'Punktide jälgimine'!C397)","v":"0"}]
[null,395,{"$f":"'Punktide jälgimine'!C398&COUNTIF('Punktide jälgimine'!$C$4:C398,'Punktide jälgimine'!C398)","v":"0"}]
[null,396,{"$f":"'Punktide jälgimine'!C399&COUNTIF('Punktide jälgimine'!$C$4:C399,'Punktide jälgimine'!C399)","v":"0"}]
[null,397,{"$f":"'Punktide jälgimine'!C400&COUNTIF('Punktide jälgimine'!$C$4:C400,'Punktide jälgimine'!C400)","v":"0"}]
[null,398,{"$f":"'Punktide jälgimine'!C401&COUNTIF('Punktide jälgimine'!$C$4:C401,'Punktide jälgimine'!C401)","v":"0"}]
[null,399,{"$f":"'Punktide jälgimine'!C402&COUNTIF('Punktide jälgimine'!$C$4:C402,'Punktide jälgimine'!C402)","v":"0"}]
[null,400,{"$f":"'Punktide jälgimine'!C403&COUNTIF('Punktide jälgimine'!$C$4:C403,'Punktide jälgimine'!C403)","v":"0"}]
[null,401,{"$f":"'Punktide jälgimine'!C404&COUNTIF('Punktide jälgimine'!$C$4:C404,'Punktide jälgimine'!C404)","v":"0"}]
[null,402,{"$f":"'Punktide jälgimine'!C405&COUNTIF('Punktide jälgimine'!$C$4:C405,'Punktide jälgimine'!C405)","v":"0"}]
[null,403,{"$f":"'Punktide jälgimine'!C406&COUNTIF('Punktide jälgimine'!$C$4:C406,'Punktide jälgimine'!C406)","v":"0"}]
[null,404,{"$f":"'Punktide jälgimine'!C407&COUNTIF('Punktide jälgimine'!$C$4:C407,'Punktide jälgimine'!C407)","v":"0"}]
[null,405,{"$f":"'Punktide jälgimine'!C408&COUNTIF('Punktide jälgimine'!$C$4:C408,'Punktide jälgimine'!C408)","v":"0"}]
[null,406,{"$f":"'Punktide jälgimine'!C409&COUNTIF('Punktide jälgimine'!$C$4:C409,'Punktide jälgimine'!C409)","v":"0"}]
[null,407,{"$f":"'Punktide jälgimine'!C410&COUNTIF('Punktide jälgimine'!$C$4:C410,'Punktide jälgimine'!C410)","v":"0"}]
[null,408,{"$f":"'Punktide jälgimine'!C411&COUNTIF('Punktide jälgimine'!$C$4:C411,'Punktide jälgimine'!C411)","v":"0"}]
[null,409,{"$f":"'Punktide jälgimine'!C412&COUNTIF('Punktide jälgimine'!$C$4:C412,'Punktide jälgimine'!C412)","v":"0"}]
[null,410,{"$f":"'Punktide jälgimine'!C413&COUNTIF('Punktide jälgimine'!$C$4:C413,'Punktide jälgimine'!C413)","v":"0"}]
[null,411,{"$f":"'Punktide jälgimine'!C414&COUNTIF('Punktide jälgimine'!$C$4:C414,'Punktide jälgimine'!C414)","v":"0"}]
[null,412,{"$f":"'Punktide jälgimine'!C415&COUNTIF('Punktide jälgimine'!$C$4:C415,'Punktide jälgimine'!C415)","v":"0"}]
[null,413,{"$f":"'Punktide jälgimine'!C416&COUNTIF('Punktide jälgimine'!$C$4:C416,'Punktide jälgimine'!C416)","v":"0"}]
[null,414,{"$f":"'Punktide jälgimine'!C417&COUNTIF('Punktide jälgimine'!$C$4:C417,'Punktide jälgimine'!C417)","v":"0"}]
[null,415,{"$f":"'Punktide jälgimine'!C418&COUNTIF('Punktide jälgimine'!$C$4:C418,'Punktide jälgimine'!C418)","v":"0"}]
[null,416,{"$f":"'Punktide jälgimine'!C419&COUNTIF('Punktide jälgimine'!$C$4:C419,'Punktide jälgimine'!C419)","v":"0"}]
[null,417,{"$f":"'Punktide jälgimine'!C420&COUNTIF('Punktide jälgimine'!$C$4:C420,'Punktide jälgimine'!C420)","v":"0"}]
[null,418,{"$f":"'Punktide jälgimine'!C421&COUNTIF('Punktide jälgimine'!$C$4:C421,'Punktide jälgimine'!C421)","v":"0"}]
[null,419,{"$f":"'Punktide jälgimine'!C422&COUNTIF('Punktide jälgimine'!$C$4:C422,'Punktide jälgimine'!C422)","v":"0"}]
[null,420,{"$f":"'Punktide jälgimine'!C423&COUNTIF('Punktide jälgimine'!$C$4:C423,'Punktide jälgimine'!C423)","v":"0"}]
[null,421,{"$f":"'Punktide jälgimine'!C424&COUNTIF('Punktide jälgimine'!$C$4:C424,'Punktide jälgimine'!C424)","v":"0"}]
[null,422,{"$f":"'Punktide jälgimine'!C425&COUNTIF('Punktide jälgimine'!$C$4:C425,'Punktide jälgimine'!C425)","v":"0"}]
[null,423,{"$f":"'Punktide jälgimine'!C426&COUNTIF('Punktide jälgimine'!$C$4:C426,'Punktide jälgimine'!C426)","v":"0"}]
[null,424,{"$f":"'Punktide jälgimine'!C427&COUNTIF('Punktide jälgimine'!$C$4:C427,'Punktide jälgimine'!C427)","v":"0"}]
[null,425,{"$f":"'Punktide jälgimine'!C428&COUNTIF('Punktide jälgimine'!$C$4:C428,'Punktide jälgimine'!C428)","v":"0"}]
[null,426,{"$f":"'Punktide jälgimine'!C429&COUNTIF('Punktide jälgimine'!$C$4:C429,'Punktide jälgimine'!C429)","v":"0"}]
[null,427,{"$f":"'Punktide jälgimine'!C430&COUNTIF('Punktide jälgimine'!$C$4:C430,'Punktide jälgimine'!C430)","v":"0"}]
[null,428,{"$f":"'Punktide jälgimine'!C431&COUNTIF('Punktide jälgimine'!$C$4:C431,'Punktide jälgimine'!C431)","v":"0"}]
[null,429,{"$f":"'Punktide jälgimine'!C432&COUNTIF('Punktide jälgimine'!$C$4:C432,'Punktide jälgimine'!C432)","v":"0"}]
[null,430,{"$f":"'Punktide jälgimine'!C433&COUNTIF('Punktide jälgimine'!$C$4:C433,'Punktide jälgimine'!C433)","v":"0"}]
[null,431,{"$f":"'Punktide jälgimine'!C434&COUNTIF('Punktide jälgimine'!$C$4:C434,'Punktide jälgimine'!C434)","v":"0"}]
[null,432,{"$f":"'Punktide jälgimine'!C435&COUNTIF('Punktide jälgimine'!$C$4:C435,'Punktide jälgimine'!C435)","v":"0"}]
[null,433,{"$f":"'Punktide jälgimine'!C436&COUNTIF('Punktide jälgimine'!$C$4:C436,'Punktide jälgimine'!C436)","v":"0"}]
[null,434,{"$f":"'Punktide jälgimine'!C437&COUNTIF('Punktide jälgimine'!$C$4:C437,'Punktide jälgimine'!C437)","v":"0"}]
[null,435,{"$f":"'Punktide jälgimine'!C438&COUNTIF('Punktide jälgimine'!$C$4:C438,'Punktide jälgimine'!C438)","v":"0"}]
[null,436,{"$f":"'Punktide jälgimine'!C439&COUNTIF('Punktide jälgimine'!$C$4:C439,'Punktide jälgimine'!C439)","v":"0"}]
[null,437,{"$f":"'Punktide jälgimine'!C440&COUNTIF('Punktide jälgimine'!$C$4:C440,'Punktide jälgimine'!C440)","v":"0"}]
[null,438,{"$f":"'Punktide jälgimine'!C441&COUNTIF('Punktide jälgimine'!$C$4:C441,'Punktide jälgimine'!C441)","v":"0"}]
[null,439,{"$f":"'Punktide jälgimine'!C442&COUNTIF('Punktide jälgimine'!$C$4:C442,'Punktide jälgimine'!C442)","v":"0"}]
[null,440,{"$f":"'Punktide jälgimine'!C443&COUNTIF('Punktide jälgimine'!$C$4:C443,'Punktide jälgimine'!C443)","v":"0"}]
[null,441,{"$f":"'Punktide jälgimine'!C444&COUNTIF('Punktide jälgimine'!$C$4:C444,'Punktide jälgimine'!C444)","v":"0"}]
[null,442,{"$f":"'Punktide jälgimine'!C445&COUNTIF('Punktide jälgimine'!$C$4:C445,'Punktide jälgimine'!C445)","v":"0"}]
[null,443,{"$f":"'Punktide jälgimine'!C446&COUNTIF('Punktide jälgimine'!$C$4:C446,'Punktide jälgimine'!C446)","v":"0"}]
[null,444,{"$f":"'Punktide jälgimine'!C447&COUNTIF('Punktide jälgimine'!$C$4:C447,'Punktide jälgimine'!C447)","v":"0"}]
[null,445,{"$f":"'Punktide jälgimine'!C448&COUNTIF('Punktide jälgimine'!$C$4:C448,'Punktide jälgimine'!C448)","v":"0"}]
[null,446,{"$f":"'Punktide jälgimine'!C449&COUNTIF('Punktide jälgimine'!$C$4:C449,'Punktide jälgimine'!C449)","v":"0"}]
[null,447,{"$f":"'Punktide jälgimine'!C450&COUNTIF('Punktide jälgimine'!$C$4:C450,'Punktide jälgimine'!C450)","v":"0"}]
[null,448,{"$f":"'Punktide jälgimine'!C451&COUNTIF('Punktide jälgimine'!$C$4:C451,'Punktide jälgimine'!C451)","v":"0"}]
[null,449,{"$f":"'Punktide jälgimine'!C452&COUNTIF('Punktide jälgimine'!$C$4:C452,'Punktide jälgimine'!C452)","v":"0"}]
[null,450,{"$f":"'Punktide jälgimine'!C453&COUNTIF('Punktide jälgimine'!$C$4:C453,'Punktide jälgimine'!C453)","v":"0"}]
[null,451,{"$f":"'Punktide jälgimine'!C454&COUNTIF('Punktide jälgimine'!$C$4:C454,'Punktide jälgimine'!C454)","v":"0"}]
[null,452,{"$f":"'Punktide jälgimine'!C455&COUNTIF('Punktide jälgimine'!$C$4:C455,'Punktide jälgimine'!C455)","v":"0"}]
[null,453,{"$f":"'Punktide jälgimine'!C456&COUNTIF('Punktide jälgimine'!$C$4:C456,'Punktide jälgimine'!C456)","v":"0"}]
[null,454,{"$f":"'Punktide jälgimine'!C457&COUNTIF('Punktide jälgimine'!$C$4:C457,'Punktide jälgimine'!C457)","v":"0"}]
[null,455,{"$f":"'Punktide jälgimine'!C458&COUNTIF('Punktide jälgimine'!$C$4:C458,'Punktide jälgimine'!C458)","v":"0"}]
[null,456,{"$f":"'Punktide jälgimine'!C459&COUNTIF('Punktide jälgimine'!$C$4:C459,'Punktide jälgimine'!C459)","v":"0"}]
[null,457,{"$f":"'Punktide jälgimine'!C460&COUNTIF('Punktide jälgimine'!$C$4:C460,'Punktide jälgimine'!C460)","v":"0"}]
[null,458,{"$f":"'Punktide jälgimine'!C461&COUNTIF('Punktide jälgimine'!$C$4:C461,'Punktide jälgimine'!C461)","v":"0"}]
[null,459,{"$f":"'Punktide jälgimine'!C462&COUNTIF('Punktide jälgimine'!$C$4:C462,'Punktide jälgimine'!C462)","v":"0"}]
[null,460,{"$f":"'Punktide jälgimine'!C463&COUNTIF('Punktide jälgimine'!$C$4:C463,'Punktide jälgimine'!C463)","v":"0"}]
[null,461,{"$f":"'Punktide jälgimine'!C464&COUNTIF('Punktide jälgimine'!$C$4:C464,'Punktide jälgimine'!C464)","v":"0"}]
[null,462,{"$f":"'Punktide jälgimine'!C465&COUNTIF('Punktide jälgimine'!$C$4:C465,'Punktide jälgimine'!C465)","v":"0"}]
[null,463,{"$f":"'Punktide jälgimine'!C466&COUNTIF('Punktide jälgimine'!$C$4:C466,'Punktide jälgimine'!C466)","v":"0"}]
[null,464,{"$f":"'Punktide jälgimine'!C467&COUNTIF('Punktide jälgimine'!$C$4:C467,'Punktide jälgimine'!C467)","v":"0"}]
[null,465,{"$f":"'Punktide jälgimine'!C468&COUNTIF('Punktide jälgimine'!$C$4:C468,'Punktide jälgimine'!C468)","v":"0"}]
[null,466,{"$f":"'Punktide jälgimine'!C469&COUNTIF('Punktide jälgimine'!$C$4:C469,'Punktide jälgimine'!C469)","v":"0"}]
[null,467,{"$f":"'Punktide jälgimine'!C470&COUNTIF('Punktide jälgimine'!$C$4:C470,'Punktide jälgimine'!C470)","v":"0"}]
[null,468,{"$f":"'Punktide jälgimine'!C471&COUNTIF('Punktide jälgimine'!$C$4:C471,'Punktide jälgimine'!C471)","v":"0"}]
[null,469,{"$f":"'Punktide jälgimine'!C472&COUNTIF('Punktide jälgimine'!$C$4:C472,'Punktide jälgimine'!C472)","v":"0"}]
[null,470,{"$f":"'Punktide jälgimine'!C473&COUNTIF('Punktide jälgimine'!$C$4:C473,'Punktide jälgimine'!C473)","v":"0"}]
[null,471,{"$f":"'Punktide jälgimine'!C474&COUNTIF('Punktide jälgimine'!$C$4:C474,'Punktide jälgimine'!C474)","v":"0"}]
[null,472,{"$f":"'Punktide jälgimine'!C475&COUNTIF('Punktide jälgimine'!$C$4:C475,'Punktide jälgimine'!C475)","v":"0"}]
[null,473,{"$f":"'Punktide jälgimine'!C476&COUNTIF('Punktide jälgimine'!$C$4:C476,'Punktide jälgimine'!C476)","v":"0"}]
[null,474,{"$f":"'Punktide jälgimine'!C477&COUNTIF('Punktide jälgimine'!$C$4:C477,'Punktide jälgimine'!C477)","v":"0"}]
[null,475,{"$f":"'Punktide jälgimine'!C478&COUNTIF('Punktide jälgimine'!$C$4:C478,'Punktide jälgimine'!C478)","v":"0"}]
[null,476,{"$f":"'Punktide jälgimine'!C479&COUNTIF('Punktide jälgimine'!$C$4:C479,'Punktide jälgimine'!C479)","v":"0"}]
[null,477,{"$f":"'Punktide jälgimine'!C480&COUNTIF('Punktide jälgimine'!$C$4:C480,'Punktide jälgimine'!C480)","v":"0"}]
[null,478,{"$f":"'Punktide jälgimine'!C481&COUNTIF('Punktide jälgimine'!$C$4:C481,'Punktide jälgimine'!C481)","v":"0"}]
[null,479,{"$f":"'Punktide jälgimine'!C482&COUNTIF('Punktide jälgimine'!$C$4:C482,'Punktide jälgimine'!C482)","v":"0"}]
[null,480,{"$f":"'Punktide jälgimine'!C483&COUNTIF('Punktide jälgimine'!$C$4:C483,'Punktide jälgimine'!C483)","v":"0"}]
[null,481,{"$f":"'Punktide jälgimine'!C484&COUNTIF('Punktide jälgimine'!$C$4:C484,'Punktide jälgimine'!C484)","v":"0"}]
[null,482,{"$f":"'Punktide jälgimine'!C485&COUNTIF('Punktide jälgimine'!$C$4:C485,'Punktide jälgimine'!C485)","v":"0"}]
[null,483,{"$f":"'Punktide jälgimine'!C486&COUNTIF('Punktide jälgimine'!$C$4:C486,'Punktide jälgimine'!C486)","v":"0"}]
[null,484,{"$f":"'Punktide jälgimine'!C487&COUNTIF('Punktide jälgimine'!$C$4:C487,'Punktide jälgimine'!C487)","v":"0"}]
[null,485,{"$f":"'Punktide jälgimine'!C488&COUNTIF('Punktide jälgimine'!$C$4:C488,'Punktide jälgimine'!C488)","v":"0"}]
[null,486,{"$f":"'Punktide jälgimine'!C489&COUNTIF('Punktide jälgimine'!$C$4:C489,'Punktide jälgimine'!C489)","v":"0"}]
[null,487,{"$f":"'Punktide jälgimine'!C490&COUNTIF('Punktide jälgimine'!$C$4:C490,'Punktide jälgimine'!C490)","v":"0"}]
[null,488,{"$f":"'Punktide jälgimine'!C491&COUNTIF('Punktide jälgimine'!$C$4:C491,'Punktide jälgimine'!C491)","v":"0"}]
[null,489,{"$f":"'Punktide jälgimine'!C492&COUNTIF('Punktide jälgimine'!$C$4:C492,'Punktide jälgimine'!C492)","v":"0"}]
[null,490,{"$f":"'Punktide jälgimine'!C493&COUNTIF('Punktide jälgimine'!$C$4:C493,'Punktide jälgimine'!C493)","v":"0"}]
[null,491,{"$f":"'Punktide jälgimine'!C494&COUNTIF('Punktide jälgimine'!$C$4:C494,'Punktide jälgimine'!C494)","v":"0"}]
[null,492,{"$f":"'Punktide jälgimine'!C495&COUNTIF('Punktide jälgimine'!$C$4:C495,'Punktide jälgimine'!C495)","v":"0"}]
[null,493,{"$f":"'Punktide jälgimine'!C496&COUNTIF('Punktide jälgimine'!$C$4:C496,'Punktide jälgimine'!C496)","v":"0"}]
[null,494,{"$f":"'Punktide jälgimine'!C497&COUNTIF('Punktide jälgimine'!$C$4:C497,'Punktide jälgimine'!C497)","v":"0"}]
[null,495,{"$f":"'Punktide jälgimine'!C498&COUNTIF('Punktide jälgimine'!$C$4:C498,'Punktide jälgimine'!C498)","v":"0"}]
[null,496,{"$f":"'Punktide jälgimine'!C499&COUNTIF('Punktide jälgimine'!$C$4:C499,'Punktide jälgimine'!C499)","v":"0"}]
[null,497,{"$f":"'Punktide jälgimine'!C500&COUNTIF('Punktide jälgimine'!$C$4:C500,'Punktide jälgimine'!C500)","v":"0"}]
[null,498,{"$f":"'Punktide jälgimine'!C501&COUNTIF('Punktide jälgimine'!$C$4:C501,'Punktide jälgimine'!C501)","v":"0"}]
[null,499,{"$f":"'Punktide jälgimine'!C502&COUNTIF('Punktide jälgimine'!$C$4:C502,'Punktide jälgimine'!C502)","v":"0"}]
[null,500,{"$f":"'Punktide jälgimine'!C503&COUNTIF('Punktide jälgimine'!$C$4:C503,'Punktide jälgimine'!C503)","v":"0"}]
[null,501,{"$f":"'Punktide jälgimine'!C504&COUNTIF('Punktide jälgimine'!$C$4:C504,'Punktide jälgimine'!C504)","v":"0"}]
[null,502,{"$f":"'Punktide jälgimine'!C505&COUNTIF('Punktide jälgimine'!$C$4:C505,'Punktide jälgimine'!C505)","v":"0"}]
[null,503,{"$f":"'Punktide jälgimine'!C506&COUNTIF('Punktide jälgimine'!$C$4:C506,'Punktide jälgimine'!C506)","v":"0"}]
[null,504,{"$f":"'Punktide jälgimine'!C507&COUNTIF('Punktide jälgimine'!$C$4:C507,'Punktide jälgimine'!C507)","v":"0"}]
[null,505,{"$f":"'Punktide jälgimine'!C508&COUNTIF('Punktide jälgimine'!$C$4:C508,'Punktide jälgimine'!C508)","v":"0"}]
[null,506,{"$f":"'Punktide jälgimine'!C509&COUNTIF('Punktide jälgimine'!$C$4:C509,'Punktide jälgimine'!C509)","v":"0"}]
[null,507,{"$f":"'Punktide jälgimine'!C510&COUNTIF('Punktide jälgimine'!$C$4:C510,'Punktide jälgimine'!C510)","v":"0"}]
[null,508,{"$f":"'Punktide jälgimine'!C511&COUNTIF('Punktide jälgimine'!$C$4:C511,'Punktide jälgimine'!C511)","v":"0"}]
[null,509,{"$f":"'Punktide jälgimine'!C512&COUNTIF('Punktide jälgimine'!$C$4:C512,'Punktide jälgimine'!C512)","v":"0"}]
[null,510,{"$f":"'Punktide jälgimine'!C513&COUNTIF('Punktide jälgimine'!$C$4:C513,'Punktide jälgimine'!C513)","v":"0"}]
[null,511,{"$f":"'Punktide jälgimine'!C514&COUNTIF('Punktide jälgimine'!$C$4:C514,'Punktide jälgimine'!C514)","v":"0"}]
[null,512,{"$f":"'Punktide jälgimine'!C515&COUNTIF('Punktide jälgimine'!$C$4:C515,'Punktide jälgimine'!C515)","v":"0"}]
[null,513,{"$f":"'Punktide jälgimine'!C516&COUNTIF('Punktide jälgimine'!$C$4:C516,'Punktide jälgimine'!C516)","v":"0"}]
[null,514,{"$f":"'Punktide jälgimine'!C517&COUNTIF('Punktide jälgimine'!$C$4:C517,'Punktide jälgimine'!C517)","v":"0"}]
[null,515,{"$f":"'Punktide jälgimine'!C518&COUNTIF('Punktide jälgimine'!$C$4:C518,'Punktide jälgimine'!C518)","v":"0"}]
[null,516,{"$f":"'Punktide jälgimine'!C519&COUNTIF('Punktide jälgimine'!$C$4:C519,'Punktide jälgimine'!C519)","v":"0"}]
[null,517,{"$f":"'Punktide jälgimine'!C520&COUNTIF('Punktide jälgimine'!$C$4:C520,'Punktide jälgimine'!C520)","v":"0"}]
[null,518,{"$f":"'Punktide jälgimine'!C521&COUNTIF('Punktide jälgimine'!$C$4:C521,'Punktide jälgimine'!C521)","v":"0"}]
[null,519,{"$f":"'Punktide jälgimine'!C522&COUNTIF('Punktide jälgimine'!$C$4:C522,'Punktide jälgimine'!C522)","v":"0"}]
[null,520,{"$f":"'Punktide jälgimine'!C523&COUNTIF('Punktide jälgimine'!$C$4:C523,'Punktide jälgimine'!C523)","v":"0"}]
[null,521,{"$f":"'Punktide jälgimine'!C524&COUNTIF('Punktide jälgimine'!$C$4:C524,'Punktide jälgimine'!C524)","v":"0"}]
[null,522,{"$f":"'Punktide jälgimine'!C525&COUNTIF('Punktide jälgimine'!$C$4:C525,'Punktide jälgimine'!C525)","v":"0"}]
[null,523,{"$f":"'Punktide jälgimine'!C526&COUNTIF('Punktide jälgimine'!$C$4:C526,'Punktide jälgimine'!C526)","v":"0"}]
[null,524,{"$f":"'Punktide jälgimine'!C527&COUNTIF('Punktide jälgimine'!$C$4:C527,'Punktide jälgimine'!C527)","v":"0"}]
[null,525,{"$f":"'Punktide jälgimine'!C528&COUNTIF('Punktide jälgimine'!$C$4:C528,'Punktide jälgimine'!C528)","v":"0"}]
[null,526,{"$f":"'Punktide jälgimine'!C529&COUNTIF('Punktide jälgimine'!$C$4:C529,'Punktide jälgimine'!C529)","v":"0"}]
[null,527,{"$f":"'Punktide jälgimine'!C530&COUNTIF('Punktide jälgimine'!$C$4:C530,'Punktide jälgimine'!C530)","v":"0"}]
[null,528,{"$f":"'Punktide jälgimine'!C531&COUNTIF('Punktide jälgimine'!$C$4:C531,'Punktide jälgimine'!C531)","v":"0"}]
[null,529,{"$f":"'Punktide jälgimine'!C532&COUNTIF('Punktide jälgimine'!$C$4:C532,'Punktide jälgimine'!C532)","v":"0"}]
[null,530,{"$f":"'Punktide jälgimine'!C533&COUNTIF('Punktide jälgimine'!$C$4:C533,'Punktide jälgimine'!C533)","v":"0"}]
[null,531,{"$f":"'Punktide jälgimine'!C534&COUNTIF('Punktide jälgimine'!$C$4:C534,'Punktide jälgimine'!C534)","v":"0"}]
[null,532,{"$f":"'Punktide jälgimine'!C535&COUNTIF('Punktide jälgimine'!$C$4:C535,'Punktide jälgimine'!C535)","v":"0"}]
[null,533,{"$f":"'Punktide jälgimine'!C536&COUNTIF('Punktide jälgimine'!$C$4:C536,'Punktide jälgimine'!C536)","v":"0"}]
[null,534,{"$f":"'Punktide jälgimine'!C537&COUNTIF('Punktide jälgimine'!$C$4:C537,'Punktide jälgimine'!C537)","v":"0"}]
[null,535,{"$f":"'Punktide jälgimine'!C538&COUNTIF('Punktide jälgimine'!$C$4:C538,'Punktide jälgimine'!C538)","v":"0"}]
[null,536,{"$f":"'Punktide jälgimine'!C539&COUNTIF('Punktide jälgimine'!$C$4:C539,'Punktide jälgimine'!C539)","v":"0"}]
[null,537,{"$f":"'Punktide jälgimine'!C540&COUNTIF('Punktide jälgimine'!$C$4:C540,'Punktide jälgimine'!C540)","v":"0"}]
[null,538,{"$f":"'Punktide jälgimine'!C541&COUNTIF('Punktide jälgimine'!$C$4:C541,'Punktide jälgimine'!C541)","v":"0"}]
[null,539,{"$f":"'Punktide jälgimine'!C542&COUNTIF('Punktide jälgimine'!$C$4:C542,'Punktide jälgimine'!C542)","v":"0"}]
[null,540,{"$f":"'Punktide jälgimine'!C543&COUNTIF('Punktide jälgimine'!$C$4:C543,'Punktide jälgimine'!C543)","v":"0"}]
[null,541,{"$f":"'Punktide jälgimine'!C544&COUNTIF('Punktide jälgimine'!$C$4:C544,'Punktide jälgimine'!C544)","v":"0"}]
[null,542,{"$f":"'Punktide jälgimine'!C545&COUNTIF('Punktide jälgimine'!$C$4:C545,'Punktide jälgimine'!C545)","v":"0"}]
[null,543,{"$f":"'Punktide jälgimine'!C546&COUNTIF('Punktide jälgimine'!$C$4:C546,'Punktide jälgimine'!C546)","v":"0"}]
[null,544,{"$f":"'Punktide jälgimine'!C547&COUNTIF('Punktide jälgimine'!$C$4:C547,'Punktide jälgimine'!C547)","v":"0"}]
[null,545,{"$f":"'Punktide jälgimine'!C548&COUNTIF('Punktide jälgimine'!$C$4:C548,'Punktide jälgimine'!C548)","v":"0"}]
[null,546,{"$f":"'Punktide jälgimine'!C549&COUNTIF('Punktide jälgimine'!$C$4:C549,'Punktide jälgimine'!C549)","v":"0"}]
[null,547,{"$f":"'Punktide jälgimine'!C550&COUNTIF('Punktide jälgimine'!$C$4:C550,'Punktide jälgimine'!C550)","v":"0"}]
[null,548,{"$f":"'Punktide jälgimine'!C551&COUNTIF('Punktide jälgimine'!$C$4:C551,'Punktide jälgimine'!C551)","v":"0"}]
[null,549,{"$f":"'Punktide jälgimine'!C552&COUNTIF('Punktide jälgimine'!$C$4:C552,'Punktide jälgimine'!C552)","v":"0"}]
[null,550,{"$f":"'Punktide jälgimine'!C553&COUNTIF('Punktide jälgimine'!$C$4:C553,'Punktide jälgimine'!C553)","v":"0"}]
[null,551,{"$f":"'Punktide jälgimine'!C554&COUNTIF('Punktide jälgimine'!$C$4:C554,'Punktide jälgimine'!C554)","v":"0"}]
[null,552,{"$f":"'Punktide jälgimine'!C555&COUNTIF('Punktide jälgimine'!$C$4:C555,'Punktide jälgimine'!C555)","v":"0"}]
[null,553,{"$f":"'Punktide jälgimine'!C556&COUNTIF('Punktide jälgimine'!$C$4:C556,'Punktide jälgimine'!C556)","v":"0"}]
[null,554,{"$f":"'Punktide jälgimine'!C557&COUNTIF('Punktide jälgimine'!$C$4:C557,'Punktide jälgimine'!C557)","v":"0"}]
[null,555,{"$f":"'Punktide jälgimine'!C558&COUNTIF('Punktide jälgimine'!$C$4:C558,'Punktide jälgimine'!C558)","v":"0"}]
[null,556,{"$f":"'Punktide jälgimine'!C559&COUNTIF('Punktide jälgimine'!$C$4:C559,'Punktide jälgimine'!C559)","v":"0"}]
[null,557,{"$f":"'Punktide jälgimine'!C560&COUNTIF('Punktide jälgimine'!$C$4:C560,'Punktide jälgimine'!C560)","v":"0"}]
[null,558,{"$f":"'Punktide jälgimine'!C561&COUNTIF('Punktide jälgimine'!$C$4:C561,'Punktide jälgimine'!C561)","v":"0"}]
[null,559,{"$f":"'Punktide jälgimine'!C562&COUNTIF('Punktide jälgimine'!$C$4:C562,'Punktide jälgimine'!C562)","v":"0"}]
[null,560,{"$f":"'Punktide jälgimine'!C563&COUNTIF('Punktide jälgimine'!$C$4:C563,'Punktide jälgimine'!C563)","v":"0"}]
[null,561,{"$f":"'Punktide jälgimine'!C564&COUNTIF('Punktide jälgimine'!$C$4:C564,'Punktide jälgimine'!C564)","v":"0"}]
[null,562,{"$f":"'Punktide jälgimine'!C565&COUNTIF('Punktide jälgimine'!$C$4:C565,'Punktide jälgimine'!C565)","v":"0"}]
[null,563,{"$f":"'Punktide jälgimine'!C566&COUNTIF('Punktide jälgimine'!$C$4:C566,'Punktide jälgimine'!C566)","v":"0"}]
[null,564,{"$f":"'Punktide jälgimine'!C567&COUNTIF('Punktide jälgimine'!$C$4:C567,'Punktide jälgimine'!C567)","v":"0"}]
[null,565,{"$f":"'Punktide jälgimine'!C568&COUNTIF('Punktide jälgimine'!$C$4:C568,'Punktide jälgimine'!C568)","v":"0"}]
[null,566,{"$f":"'Punktide jälgimine'!C569&COUNTIF('Punktide jälgimine'!$C$4:C569,'Punktide jälgimine'!C569)","v":"0"}]
[null,567,{"$f":"'Punktide jälgimine'!C570&COUNTIF('Punktide jälgimine'!$C$4:C570,'Punktide jälgimine'!C570)","v":"0"}]
[null,568,{"$f":"'Punktide jälgimine'!C571&COUNTIF('Punktide jälgimine'!$C$4:C571,'Punktide jälgimine'!C571)","v":"0"}]
[null,569,{"$f":"'Punktide jälgimine'!C572&COUNTIF('Punktide jälgimine'!$C$4:C572,'Punktide jälgimine'!C572)","v":"0"}]
[null,570,{"$f":"'Punktide jälgimine'!C573&COUNTIF('Punktide jälgimine'!$C$4:C573,'Punktide jälgimine'!C573)","v":"0"}]
[null,571,{"$f":"'Punktide jälgimine'!C574&COUNTIF('Punktide jälgimine'!$C$4:C574,'Punktide jälgimine'!C574)","v":"0"}]
[null,572,{"$f":"'Punktide jälgimine'!C575&COUNTIF('Punktide jälgimine'!$C$4:C575,'Punktide jälgimine'!C575)","v":"0"}]
[null,573,{"$f":"'Punktide jälgimine'!C576&COUNTIF('Punktide jälgimine'!$C$4:C576,'Punktide jälgimine'!C576)","v":"0"}]
[null,574,{"$f":"'Punktide jälgimine'!C577&COUNTIF('Punktide jälgimine'!$C$4:C577,'Punktide jälgimine'!C577)","v":"0"}]
[null,575,{"$f":"'Punktide jälgimine'!C578&COUNTIF('Punktide jälgimine'!$C$4:C578,'Punktide jälgimine'!C578)","v":"0"}]
[null,576,{"$f":"'Punktide jälgimine'!C579&COUNTIF('Punktide jälgimine'!$C$4:C579,'Punktide jälgimine'!C579)","v":"0"}]
[null,577,{"$f":"'Punktide jälgimine'!C580&COUNTIF('Punktide jälgimine'!$C$4:C580,'Punktide jälgimine'!C580)","v":"0"}]
[null,578,{"$f":"'Punktide jälgimine'!C581&COUNTIF('Punktide jälgimine'!$C$4:C581,'Punktide jälgimine'!C581)","v":"0"}]
[null,579,{"$f":"'Punktide jälgimine'!C582&COUNTIF('Punktide jälgimine'!$C$4:C582,'Punktide jälgimine'!C582)","v":"0"}]
[null,580,{"$f":"'Punktide jälgimine'!C583&COUNTIF('Punktide jälgimine'!$C$4:C583,'Punktide jälgimine'!C583)","v":"0"}]
[null,581,{"$f":"'Punktide jälgimine'!C584&COUNTIF('Punktide jälgimine'!$C$4:C584,'Punktide jälgimine'!C584)","v":"0"}]
[null,582,{"$f":"'Punktide jälgimine'!C585&COUNTIF('Punktide jälgimine'!$C$4:C585,'Punktide jälgimine'!C585)","v":"0"}]
[null,583,{"$f":"'Punktide jälgimine'!C586&COUNTIF('Punktide jälgimine'!$C$4:C586,'Punktide jälgimine'!C586)","v":"0"}]
[null,584,{"$f":"'Punktide jälgimine'!C587&COUNTIF('Punktide jälgimine'!$C$4:C587,'Punktide jälgimine'!C587)","v":"0"}]
[null,585,{"$f":"'Punktide jälgimine'!C588&COUNTIF('Punktide jälgimine'!$C$4:C588,'Punktide jälgimine'!C588)","v":"0"}]
[null,586,{"$f":"'Punktide jälgimine'!C589&COUNTIF('Punktide jälgimine'!$C$4:C589,'Punktide jälgimine'!C589)","v":"0"}]
[null,587,{"$f":"'Punktide jälgimine'!C590&COUNTIF('Punktide jälgimine'!$C$4:C590,'Punktide jälgimine'!C590)","v":"0"}]
[null,588,{"$f":"'Punktide jälgimine'!C591&COUNTIF('Punktide jälgimine'!$C$4:C591,'Punktide jälgimine'!C591)","v":"0"}]
[null,589,{"$f":"'Punktide jälgimine'!C592&COUNTIF('Punktide jälgimine'!$C$4:C592,'Punktide jälgimine'!C592)","v":"0"}]
[null,590,{"$f":"'Punktide jälgimine'!C593&COUNTIF('Punktide jälgimine'!$C$4:C593,'Punktide jälgimine'!C593)","v":"0"}]
[null,591,{"$f":"'Punktide jälgimine'!C594&COUNTIF('Punktide jälgimine'!$C$4:C594,'Punktide jälgimine'!C594)","v":"0"}]
[null,592,{"$f":"'Punktide jälgimine'!C595&COUNTIF('Punktide jälgimine'!$C$4:C595,'Punktide jälgimine'!C595)","v":"0"}]
[null,593,{"$f":"'Punktide jälgimine'!C596&COUNTIF('Punktide jälgimine'!$C$4:C596,'Punktide jälgimine'!C596)","v":"0"}]
[null,594,{"$f":"'Punktide jälgimine'!C597&COUNTIF('Punktide jälgimine'!$C$4:C597,'Punktide jälgimine'!C597)","v":"0"}]
[null,595,{"$f":"'Punktide jälgimine'!C598&COUNTIF('Punktide jälgimine'!$C$4:C598,'Punktide jälgimine'!C598)","v":"0"}]
[null,596,{"$f":"'Punktide jälgimine'!C599&COUNTIF('Punktide jälgimine'!$C$4:C599,'Punktide jälgimine'!C599)","v":"0"}]
[null,597,{"$f":"'Punktide jälgimine'!C600&COUNTIF('Punktide jälgimine'!$C$4:C600,'Punktide jälgimine'!C600)","v":"0"}]
[null,598,{"$f":"'Punktide jälgimine'!C601&COUNTIF('Punktide jälgimine'!$C$4:C601,'Punktide jälgimine'!C601)","v":"0"}]
[null,599,{"$f":"'Punktide jälgimine'!C602&COUNTIF('Punktide jälgimine'!$C$4:C602,'Punktide jälgimine'!C602)","v":"0"}]
[null,600,{"$f":"'Punktide jälgimine'!C603&COUNTIF('Punktide jälgimine'!$C$4:C603,'Punktide jälgimine'!C603)","v":"0"}]
[null,601,{"$f":"'Punktide jälgimine'!C604&COUNTIF('Punktide jälgimine'!$C$4:C604,'Punktide jälgimine'!C604)","v":"0"}]
[null,602,{"$f":"'Punktide jälgimine'!C605&COUNTIF('Punktide jälgimine'!$C$4:C605,'Punktide jälgimine'!C605)","v":"0"}]
[null,603,{"$f":"'Punktide jälgimine'!C606&COUNTIF('Punktide jälgimine'!$C$4:C606,'Punktide jälgimine'!C606)","v":"0"}]
[null,604,{"$f":"'Punktide jälgimine'!C607&COUNTIF('Punktide jälgimine'!$C$4:C607,'Punktide jälgimine'!C607)","v":"0"}]
[null,605,{"$f":"'Punktide jälgimine'!C608&COUNTIF('Punktide jälgimine'!$C$4:C608,'Punktide jälgimine'!C608)","v":"0"}]
[null,606,{"$f":"'Punktide jälgimine'!C609&COUNTIF('Punktide jälgimine'!$C$4:C609,'Punktide jälgimine'!C609)","v":"0"}]
[null,607,{"$f":"'Punktide jälgimine'!C610&COUNTIF('Punktide jälgimine'!$C$4:C610,'Punktide jälgimine'!C610)","v":"0"}]
[null,608,{"$f":"'Punktide jälgimine'!C611&COUNTIF('Punktide jälgimine'!$C$4:C611,'Punktide jälgimine'!C611)","v":"0"}]
[null,609,{"$f":"'Punktide jälgimine'!C612&COUNTIF('Punktide jälgimine'!$C$4:C612,'Punktide jälgimine'!C612)","v":"0"}]
[null,610,{"$f":"'Punktide jälgimine'!C613&COUNTIF('Punktide jälgimine'!$C$4:C613,'Punktide jälgimine'!C613)","v":"0"}]
[null,611,{"$f":"'Punktide jälgimine'!C614&COUNTIF('Punktide jälgimine'!$C$4:C614,'Punktide jälgimine'!C614)","v":"0"}]
[null,612,{"$f":"'Punktide jälgimine'!C615&COUNTIF('Punktide jälgimine'!$C$4:C615,'Punktide jälgimine'!C615)","v":"0"}]
[null,613,{"$f":"'Punktide jälgimine'!C616&COUNTIF('Punktide jälgimine'!$C$4:C616,'Punktide jälgimine'!C616)","v":"0"}]
[null,614,{"$f":"'Punktide jälgimine'!C617&COUNTIF('Punktide jälgimine'!$C$4:C617,'Punktide jälgimine'!C617)","v":"0"}]
[null,615,{"$f":"'Punktide jälgimine'!C618&COUNTIF('Punktide jälgimine'!$C$4:C618,'Punktide jälgimine'!C618)","v":"0"}]
[null,616,{"$f":"'Punktide jälgimine'!C619&COUNTIF('Punktide jälgimine'!$C$4:C619,'Punktide jälgimine'!C619)","v":"0"}]
[null,617,{"$f":"'Punktide jälgimine'!C620&COUNTIF('Punktide jälgimine'!$C$4:C620,'Punktide jälgimine'!C620)","v":"0"}]
[null,618,{"$f":"'Punktide jälgimine'!C621&COUNTIF('Punktide jälgimine'!$C$4:C621,'Punktide jälgimine'!C621)","v":"0"}]
[null,619,{"$f":"'Punktide jälgimine'!C622&COUNTIF('Punktide jälgimine'!$C$4:C622,'Punktide jälgimine'!C622)","v":"0"}]
[null,620,{"$f":"'Punktide jälgimine'!C623&COUNTIF('Punktide jälgimine'!$C$4:C623,'Punktide jälgimine'!C623)","v":"0"}]
[null,621,{"$f":"'Punktide jälgimine'!C624&COUNTIF('Punktide jälgimine'!$C$4:C624,'Punktide jälgimine'!C624)","v":"0"}]
[null,622,{"$f":"'Punktide jälgimine'!C625&COUNTIF('Punktide jälgimine'!$C$4:C625,'Punktide jälgimine'!C625)","v":"0"}]
[null,623,{"$f":"'Punktide jälgimine'!C626&COUNTIF('Punktide jälgimine'!$C$4:C626,'Punktide jälgimine'!C626)","v":"0"}]
[null,624,{"$f":"'Punktide jälgimine'!C627&COUNTIF('Punktide jälgimine'!$C$4:C627,'Punktide jälgimine'!C627)","v":"0"}]
[null,625,{"$f":"'Punktide jälgimine'!C628&COUNTIF('Punktide jälgimine'!$C$4:C628,'Punktide jälgimine'!C628)","v":"0"}]